{"text_format":"1","workbook":"xlsx","n_sheets":2,"sheets":["3.1_изм смета - Базисно-индексн","3.2_изм.смета - Базисно-индексн"],"not_rendered":{"charts":0,"images":0,"macros":1,"external_links":0,"defined_names":3,"comments":0,"pivot_tables":0},"unopened":[],"bounds":{"document_bytes":16777216,"sheet_cells":100000,"rows_first":2000,"rows_last":500,"rows_between":2000,"halvings":0,"cell_chars":16384,"cell_head_chars":4096},"cells_cut":0,"cells_raw":0,"read":"whole","date_system":"1900"}

{"sheet":"3.1_изм смета - Базисно-индексн","index":0,"n_rows":196,"n_cols":67,"rows_kept":196,"cut":false,"hidden":false,"merged":[]}
[]
["Терминал по перевалке минеральных удобрений в морском торговом порту Усть-Луга. Береговые объекты терминала",null,null,null,null,null,null,null,null,null,null,null,null,null,null,null,"Терминал по перевалке минеральных удобрений в морском торговом порту Усть-Луга. Береговые объекты терминала","","","","","","","","","","","","","",""]
["(наименование стройки)"]
[]
["ЛОКАЛЬНАЯ СМЕТА № 1632-2021-2.1.3-КМ_07.04.042-П-01-02"]
["(локальная смета)"]
["на Конструкции металлические, 07.04.042 Конвейерная галерея №3 (код SAP 01.02.011) код ГП 2.1.3",null,null,null,null,null,null,null,null,null,null,null,null,null,null,null,null,null,null,null,null,null,null,null,null,null,null,null,null,null,null,"на Конструкции металлические, 07.04.042 Конвейерная галерея №3 (код SAP 01.02.011) код ГП 2.1.3","","","","","","","","","","","","","",""]
["(наименование работ и затрат, наименование объекта)"]
[null,"Основание:","1632-2021-2.1.3-КМ_0_0_RU_IFC"]
[]
["№ п/п","Обоснование","Наименование работ и затрат",null,null,"Ед. изм.","Кол-во","Всего","Цена за ед.измерения, руб., с НДС","Стоимость материалов,руб., с НДС","Цена за ед.измерения, руб., с НДС","Стоимость работ,руб., с НДС",null,null,null,null,null,null,null,null,null,null,null,null,null,null,null,null,null,null,null,null,null,null,null,null,null,null,null,null,null,null,null,null,null,null,null,null,null,null,null,null,null,null,null,null,null,null,null,null,null,null,null,null,null,null,"Стоимость материалов,руб., с НДС"]
[1,2,3,null,null,4,5,10,null,13,null,10,null,null,null,null,null,null,null,null,null,null,null,null,null,null,null,null,null,null,null,null,null,null,null,null,null,null,null,null,null,null,null,null,null,null,null,null,null,null,null,null,null,null,null,null,null,null,null,null,null,null,null,null,null,null,13]
["Раздел 1. Новый Раздел",null,null,null,null,null,null,null,null,null,null,null,null,"ВЗиС","ЗУ","Вахта",null,null,null,null,null,null,null,null,null,null,null,null,null,null,null,null,null,null,null,null,null,null,null,null,null,null,null,null,null,null,null,null,null,null,null,null,null,null,null,null,"Раздел 1. Новый Раздел",null,null,null,null,null,"Перевоз.","Перебаз.","Непр.","НДС"]
["Раздел 1. Рельсовый путь № 1",null,null,null,null,null,null,null,null,null,null,null,null,1.052,1.0209999999999999,1.0349999999999999,null,null,null,null,null,null,null,null,null,null,null,null,null,null,null,null,null,null,null,null,null,null,null,null,null,null,null,null,null,null,null,null,null,null,null,null,null,null,null,null,null,"Раздел 1. Рельсовый путь № 1",null,null,null,null,1.0249999999999999,1.02,1.03,1.2]
["1","ТЕР09-03-005-02","Монтаж подкрановых путей: по металлическим  подкрановым балкам для рельсов типа КР\n//вес 83,09 кг./м",null,null,"100 м рельса в одну нитку",6.4989999999999997,2285792.6800000002,{"$f":"J15/G15","v":12986.63332820434},84400.13,{"$f":"L15/G15","v":351714.52223418991},2285792.6800000002,null,1.052,1.0209999999999999,1.0349999999999999,null,null,null,null,null,null,null,null,null,null,null,null,null,null,null,null,null,null,null,null,null,null,null,null,null,null,null,null,null,null,null,null,null,null,null,null,null,null,null,null,null,"Раздел 1. Рельсовый путь № 2",null,null,null,null,1.0249999999999999,1.02,1.03,1.2,{"$f":"J15*N15*O15*P15*BK15*BL15*BM15*BN15","v":121246.00987425227}]
[null,null,null,null,"Итого c накладными и см. прибылью",null,null,4849182.45,null,null,null,4849182.45,null,1.052,1.0209999999999999,1.0349999999999999,null,null,null,null,null,null,null,null,null,null,null,null,null,null,null,null,null,null,null,null,null,null,null,null,null,null,null,null,null,null,null,null,null,null,null,null,null,null,null,null,null,"Раздел 1. Рельсовый путь № 5",null,null,null,null,1.0249999999999999,1.02,1.03,1.2,{"$f":"J16*N16*O16*P16*BK16*BL16*BM16*BN16","v":0}]
[null,"101-0309","Канаты пеньковые пропитанные",null,null,"т","0,0009\n0,0058",193.26,null,193.26,null,193.26,null,1.052,1.0209999999999999,1.0349999999999999,null,null,null,null,null,null,null,null,null,null,null,null,null,null,null,null,null,null,null,null,null,null,null,null,null,null,null,null,null,null,null,null,null,null,null,null,null,null,null,null,null,"Раздел 1. Рельсовый путь № 6",null,null,null,null,1.0249999999999999,1.02,1.03,1.2,277.62994995739928]
[null,"101-0324","Кислород технический: газообразный",null,null,"м3","16,58\n107,8",976.67,null,976.67,null,976.67,null,1.052,1.0209999999999999,1.0349999999999999,null,null,null,null,null,null,null,null,null,null,null,null,null,null,null,null,null,null,null,null,null,null,null,null,null,null,null,null,null,null,null,null,null,null,null,null,null,null,null,null,null,"Раздел 1. Рельсовый путь № 7",null,null,null,null,1.0249999999999999,1.02,1.03,1.2,1403.0468965377886]
[null,"101-0797","Проволока горячекатаная в мотках, диаметром 6,3-6,5 мм",null,null,"т","0,0002\n0,0013",3.85,null,3.85,null,3.85,null,1.052,1.0209999999999999,1.0349999999999999,null,null,null,null,null,null,null,null,null,null,null,null,null,null,null,null,null,null,null,null,null,null,null,null,null,null,null,null,null,null,null,null,null,null,null,null,null,null,null,null,null,"Раздел 1. Рельсовый путь № 8",null,null,null,null,1.0249999999999999,1.02,1.03,1.2,5.5307632584910857]
[null,"101-1515","Электроды диаметром: 4 мм Э46",null,null,"т","0,1\n0,6499",6708.14,null,6708.14,null,6708.14,null,1.052,1.0209999999999999,1.0349999999999999,null,null,null,null,null,null,null,null,null,null,null,null,null,null,null,null,null,null,null,null,null,null,null,null,null,null,null,null,null,null,null,null,null,null,null,null,null,null,null,null,null,"Раздел 1. Рельсовый путь № 9",null,null,null,null,1.0249999999999999,1.02,1.03,1.2,9636.6582454063355]
[null,"101-1805","Гвозди строительные",null,null,"т","0,0008\n0,0052",55.5,null,55.5,null,55.5,null,1.052,1.0209999999999999,1.0349999999999999,null,null,null,null,null,null,null,null,null,null,null,null,null,null,null,null,null,null,null,null,null,null,null,null,null,null,null,null,null,null,null,null,null,null,null,null,null,null,null,null,null,"Раздел 1. Рельсовый путь № 10",null,null,null,null,1.0249999999999999,1.02,1.03,1.2,79.729184635390965]
[null,"101-2278","Пропан-бутан, смесь техническая",null,null,"кг","5\n32,5",172.25,null,172.25,null,172.25,null,1.052,1.0209999999999999,1.0349999999999999,null,null,null,null,null,null,null,null,null,null,null,null,null,null,null,null,null,null,null,null,null,null,null,null,null,null,null,null,null,null,null,null,null,null,null,null,null,null,null,null,null,"Раздел 1. Рельсовый путь № 11",null,null,null,null,1.0249999999999999,1.02,1.03,1.2,247.44778474677648]
[null,"101-2467","Растворитель марки: Р-4",null,null,"т","0,0005\n0,0032",49.64,null,49.64,null,49.64,null,1.052,1.0209999999999999,1.0349999999999999,null,null,null,null,null,null,null,null,null,null,null,null,null,null,null,null,null,null,null,null,null,null,null,null,null,null,null,null,null,null,null,null,null,null,null,null,null,null,null,null,null,"Раздел 1. Рельсовый путь № 12",null,null,null,null,1.0249999999999999,1.02,1.03,1.2,71.310931987401929]
[null,"102-0023","Бруски обрезные хвойных пород длиной: 4-6,5 м, шириной 75-150 мм, толщиной 40-75 мм, I сорта",null,null,"м3","0,08\n0,5199",1348.2,null,1348.2,null,1348.2,null,1.052,1.0209999999999999,1.0349999999999999,null,null,null,null,null,null,null,null,null,null,null,null,null,null,null,null,null,null,null,null,null,null,null,null,null,null,null,null,null,null,null,null,null,null,null,null,null,null,null,null,null,"Раздел 1. Рельсовый путь № 13",null,null,null,null,1.0249999999999999,1.02,1.03,1.2,1936.7727337916053]
[null,"113-0021","Грунтовка: ГФ-021 красно-коричневая",null,null,"т","0,0026\n0,0169",310.17,null,310.17,null,310.17,null,1.052,1.0209999999999999,1.0349999999999999,null,null,null,null,null,null,null,null,null,null,null,null,null,null,null,null,null,null,null,null,null,null,null,null,null,null,null,null,null,null,null,null,null,null,null,null,null,null,null,null,null,"Раздел 1. Рельсовый путь № 14",null,null,null,null,1.0249999999999999,1.02,1.03,1.2,445.57839997043635]
["П,Н","201-0631","Детали крепления рельсов",null,null,"т","0\n0",0,null,0,null,0,null,1.052,1.0209999999999999,1.0349999999999999,null,null,null,null,null,null,null,null,null,null,null,null,null,null,null,null,null,null,null,null,null,null,null,null,null,null,null,null,null,null,null,null,null,null,null,null,null,null,null,null,null,"Раздел 1. Рельсовый путь № 15",null,null,null,null,1.0249999999999999,1.02,1.03,1.2,0]
["П,Н","201-9002","Конструкции стальные",null,null,"т","0\n0",0,null,0,null,0,null,1.052,1.0209999999999999,1.0349999999999999,null,null,null,null,null,null,null,null,null,null,null,null,null,null,null,null,null,null,null,null,null,null,null,null,null,null,null,null,null,null,null,null,null,null,null,null,null,null,null,null,null,"Раздел 1. Рельсовый путь № 16",null,null,null,null,1.0249999999999999,1.02,1.03,1.2,0]
[null,"508-0097","Канат двойной свивки типа ТК, конструкции 6х19(1+6+12)+1 о.с., оцинкованный из проволок марки В, маркировочная группа: 1770 н/мм2, диаметром 5,5 мм",null,null,"10 м","0,09\n0,5849",40.18,null,40.18,null,40.18,null,1.052,1.0209999999999999,1.0349999999999999,null,null,null,null,null,null,null,null,null,null,null,null,null,null,null,null,null,null,null,null,null,null,null,null,null,null,null,null,null,null,null,null,null,null,null,null,null,null,null,null,null,"Раздел 1. Рельсовый путь № 17",null,null,null,null,1.0249999999999999,1.02,1.03,1.2,57.721056552252406]
["2\n*","ТССЦ-202-0017","Пути подкрановые, марка стали: С 255, крепления и упоры//Рельсовые комплекты",null,null,"т",25.172709999999999,6132903.0599999996,null,6132903.0599999996,null,6132903.0599999996,null,1.052,1.0209999999999999,1.0349999999999999,null,null,null,null,null,null,null,null,null,null,null,null,null,null,null,null,null,null,null,null,null,null,null,null,null,null,null,null,null,null,null,null,null,null,null,null,null,null,null,null,null,"Раздел 1. Рельсовый путь № 18",null,null,null,null,1.0249999999999999,1.02,1.03,1.2,8810294.7823728696]
["3\n*","ТССЦ-202-0016","Пути подкрановые, марка стали: С 255, рельсы железнодорожные",null,null,"т",27.000095999999999,2770392.13,null,2770392.13,null,2770392.13,null,1.052,1.0209999999999999,1.0349999999999999,null,null,null,null,null,null,null,null,null,null,null,null,null,null,null,null,null,null,null,null,null,null,null,null,null,null,null,null,null,null,null,null,null,null,null,null,null,null,null,null,null,"Раздел 1. Рельсовый путь № 19",null,null,null,null,1.0249999999999999,1.02,1.03,1.2,3979839.7413550285]
["Раздел 2. Рельсовый путь № 2",null,null,null,null,null,null,null,null,null,null,null,null,1.052,1.0209999999999999,1.0349999999999999,null,null,null,null,null,null,null,null,null,null,null,null,null,null,null,null,null,null,null,null,null,null,null,null,null,null,null,null,null,null,null,null,null,null,null,null,null,null,null,null,null,"Раздел 1. Рельсовый путь № 20",null,null,null,null,1.0249999999999999,1.02,1.03,1.2,0]
["4","ТЕР09-03-005-02","Монтаж подкрановых путей: по металлическим  подкрановым балкам для рельсов типа КР\n//вес 83,09 кг./м",null,null,"100 м рельса в одну нитку",6.8545999999999996,2410862.35,null,89018.17,null,2410862.35,null,1.052,1.0209999999999999,1.0349999999999999,null,null,null,null,null,null,null,null,null,null,null,null,null,null,null,null,null,null,null,null,null,null,null,null,null,null,null,null,null,null,null,null,null,null,null,null,null,null,null,null,null,"Раздел 1. Рельсовый путь № 21",null,null,null,null,1.0249999999999999,1.02,1.03,1.2,127880.11012314633]
[null,null,null,null,"Итого c накладными и см. прибылью",null,null,5114510.83,null,null,null,5114510.83,null,1.052,1.0209999999999999,1.0349999999999999,null,null,null,null,null,null,null,null,null,null,null,null,null,null,null,null,null,null,null,null,null,null,null,null,null,null,null,null,null,null,null,null,null,null,null,null,null,null,null,null,null,"Раздел 1. Рельсовый путь № 24",null,null,null,null,1.0249999999999999,1.02,1.03,1.2,0]
[null,"101-0309","Канаты пеньковые пропитанные",null,null,"т","0,0009\n0,0062",206.59,null,206.59,null,206.59,null,1.052,1.0209999999999999,1.0349999999999999,null,null,null,null,null,null,null,null,null,null,null,null,null,null,null,null,null,null,null,null,null,null,null,null,null,null,null,null,null,null,null,null,null,null,null,null,null,null,null,null,null,"Раздел 1. Рельсовый путь № 25",null,null,null,null,1.0249999999999999,1.02,1.03,1.2,296.77931988874627]
[null,"101-0324","Кислород технический: газообразный",null,null,"м3","16,58\n113,6",1029.22,null,1029.22,null,1029.22,null,1.052,1.0209999999999999,1.0349999999999999,null,null,null,null,null,null,null,null,null,null,null,null,null,null,null,null,null,null,null,null,null,null,null,null,null,null,null,null,null,null,null,null,null,null,null,null,null,null,null,null,null,"Раздел 1. Рельсовый путь № 26",null,null,null,null,1.0249999999999999,1.02,1.03,1.2,1478.5382236114788]
[null,"101-0797","Проволока горячекатаная в мотках, диаметром 6,3-6,5 мм",null,null,"т","0,0002\n0,0014",4.1500000000000004,null,4.1500000000000004,null,4.1500000000000004,null,1.052,1.0209999999999999,1.0349999999999999,null,null,null,null,null,null,null,null,null,null,null,null,null,null,null,null,null,null,null,null,null,null,null,null,null,null,null,null,null,null,null,null,null,null,null,null,null,null,null,null,null,"Раздел 1. Рельсовый путь № 27",null,null,null,null,1.0249999999999999,1.02,1.03,1.2,5.9617318240877939]
[null,"101-1515","Электроды диаметром: 4 мм Э46",null,null,"т","0,1\n0,6855",7075.59,null,7075.59,null,7075.59,null,1.052,1.0209999999999999,1.0349999999999999,null,null,null,null,null,null,null,null,null,null,null,null,null,null,null,null,null,null,null,null,null,null,null,null,null,null,null,null,null,null,null,null,null,null,null,null,null,null,null,null,null,"Раздел 1. Рельсовый путь № 28",null,null,null,null,1.0249999999999999,1.02,1.03,1.2,10164.522910168034]
[null,"101-1805","Гвозди строительные",null,null,"т","0,0008\n0,0055",58.7,null,58.7,null,58.7,null,1.052,1.0209999999999999,1.0349999999999999,null,null,null,null,null,null,null,null,null,null,null,null,null,null,null,null,null,null,null,null,null,null,null,null,null,null,null,null,null,null,null,null,null,null,null,null,null,null,null,null,null,"Раздел 1. Рельсовый путь № 29",null,null,null,null,1.0249999999999999,1.02,1.03,1.2,84.326182668422504]
[null,"101-2278","Пропан-бутан, смесь техническая",null,null,"кг","5\n34,27",181.63,null,181.63,null,181.63,null,1.052,1.0209999999999999,1.0349999999999999,null,null,null,null,null,null,null,null,null,null,null,null,null,null,null,null,null,null,null,null,null,null,null,null,null,null,null,null,null,null,null,null,null,null,null,null,null,null,null,null,null,"Раздел 1. Рельсовый путь № 30",null,null,null,null,1.0249999999999999,1.02,1.03,1.2,260.92273523110021]
[null,"101-2467","Растворитель марки: Р-4",null,null,"т","0,0005\n0,0034",52.74,null,52.74,null,52.74,null,1.052,1.0209999999999999,1.0349999999999999,null,null,null,null,null,null,null,null,null,null,null,null,null,null,null,null,null,null,null,null,null,null,null,null,null,null,null,null,null,null,null,null,null,null,null,null,null,null,null,null,null,"Раздел 1. Рельсовый путь № 31",null,null,null,null,1.0249999999999999,1.02,1.03,1.2,75.764273831901249]
[null,"102-0023","Бруски обрезные хвойных пород длиной: 4-6,5 м, шириной 75-150 мм, толщиной 40-75 мм, I сорта",null,null,"м3","0,08\n0,5484",1422.11,null,1422.11,null,1422.11,null,1.052,1.0209999999999999,1.0349999999999999,null,null,null,null,null,null,null,null,null,null,null,null,null,null,null,null,null,null,null,null,null,null,null,null,null,null,null,null,null,null,null,null,null,null,null,null,null,null,null,null,null,"Раздел 1. Рельсовый путь № 32",null,null,null,null,1.0249999999999999,1.02,1.03,1.2,2042.9490227357808]
[null,"113-0021","Грунтовка: ГФ-021 красно-коричневая",null,null,"т","0,0026\n0,0178",326.69,null,326.69,null,326.69,null,1.052,1.0209999999999999,1.0349999999999999,null,null,null,null,null,null,null,null,null,null,null,null,null,null,null,null,null,null,null,null,null,null,null,null,null,null,null,null,null,null,null,null,null,null,null,null,null,null,null,null,null,"Раздел 1. Рельсовый путь № 33",null,null,null,null,1.0249999999999999,1.02,1.03,1.2,469.3104023159616]
["П,Н","201-0631","Детали крепления рельсов",null,null,"т","0\n0",0,null,0,null,0,null,1.052,1.0209999999999999,1.0349999999999999,null,null,null,null,null,null,null,null,null,null,null,null,null,null,null,null,null,null,null,null,null,null,null,null,null,null,null,null,null,null,null,null,null,null,null,null,null,null,null,null,null,"Раздел 1. Рельсовый путь № 34",null,null,null,null,1.0249999999999999,1.02,1.03,1.2,0]
["П,Н","201-9002","Конструкции стальные",null,null,"т","0\n0",0,null,0,null,0,null,1.052,1.0209999999999999,1.0349999999999999,null,null,null,null,null,null,null,null,null,null,null,null,null,null,null,null,null,null,null,null,null,null,null,null,null,null,null,null,null,null,null,null,null,null,null,null,null,null,null,null,null,"Раздел 1. Рельсовый путь № 35",null,null,null,null,1.0249999999999999,1.02,1.03,1.2,0]
[null,"508-0097","Канат двойной свивки типа ТК, конструкции 6х19(1+6+12)+1 о.с., оцинкованный из проволок марки В, маркировочная группа: 1770 н/мм2, диаметром 5,5 мм",null,null,"10 м","0,09\n0,6169",42.38,null,42.38,null,42.38,null,1.052,1.0209999999999999,1.0349999999999999,null,null,null,null,null,null,null,null,null,null,null,null,null,null,null,null,null,null,null,null,null,null,null,null,null,null,null,null,null,null,null,null,null,null,null,null,null,null,null,null,null,"Раздел 1. Рельсовый путь № 36",null,null,null,null,1.0249999999999999,1.02,1.03,1.2,60.881492699961612]
["5\n*","ТССЦ-202-0017","Пути подкрановые, марка стали: С 255, крепления и упоры//Рельсовые комплекты",null,null,"т",43.106340000000003,10502127.279999999,null,10502127.279999999,null,10502127.279999999,null,1.052,1.0209999999999999,1.0349999999999999,null,null,null,null,null,null,null,null,null,null,null,null,null,null,null,null,null,null,null,null,null,null,null,null,null,null,null,null,null,null,null,null,null,null,null,null,null,null,null,null,null,"Раздел 1. Рельсовый путь № 37",null,null,null,null,1.0249999999999999,1.02,1.03,1.2,15086955.76525219]
["6\n*","ТССЦ-202-0016","Пути подкрановые, марка стали: С 255, рельсы железнодорожные",null,null,"т",38.889572999999999,3990332.74,null,3990332.74,null,3990332.74,null,1.052,1.0209999999999999,1.0349999999999999,null,null,null,null,null,null,null,null,null,null,null,null,null,null,null,null,null,null,null,null,null,null,null,null,null,null,null,null,null,null,null,null,null,null,null,null,null,null,null,null,null,"Раздел 1. Рельсовый путь № 38",null,null,null,null,1.0249999999999999,1.02,1.03,1.2,5732359.9240379389]
["Раздел 3. Рельсовый путь № 3",null,null,null,null,null,null,null,null,null,null,null,null,1.052,1.0209999999999999,1.0349999999999999,null,null,null,null,null,null,null,null,null,null,null,null,null,null,null,null,null,null,null,null,null,null,null,null,null,null,null,null,null,null,null,null,null,null,null,null,null,null,null,null,null,"Раздел 1. Рельсовый путь № 39",null,null,null,null,1.0249999999999999,1.02,1.03,1.2,0]
["7","ТЕР09-03-005-02","Монтаж подкрановых путей: по металлическим  подкрановым балкам для рельсов типа КР\n//вес 83,09 кг./м",null,null,"100 м рельса в одну нитку",6.5439999999999996,2301619.83,null,84984.53,null,2301619.83,null,1.052,1.0209999999999999,1.0349999999999999,null,null,null,null,null,null,null,null,null,null,null,null,null,null,null,null,null,null,null,null,null,null,null,null,null,null,null,null,null,null,null,null,null,null,null,null,null,null,null,null,null,"Раздел 1. Рельсовый путь № 40",null,null,null,null,1.0249999999999999,1.02,1.03,1.2,122085.53664003465]
[null,null,null,null,"Итого c накладными и см. прибылью",null,null,4882758.8600000003,null,null,null,4882758.8600000003,null,1.052,1.0209999999999999,1.0349999999999999,null,null,null,null,null,null,null,null,null,null,null,null,null,null,null,null,null,null,null,null,null,null,null,null,null,null,null,null,null,null,null,null,null,null,null,null,null,null,null,null,null,"Раздел 1. Рельсовый путь № 43",null,null,null,null,1.0249999999999999,1.02,1.03,1.2,0]
[null,"101-0309","Канаты пеньковые пропитанные",null,null,"т","0,0009\n0,0059",196.59,null,196.59,null,196.59,null,1.052,1.0209999999999999,1.0349999999999999,null,null,null,null,null,null,null,null,null,null,null,null,null,null,null,null,null,null,null,null,null,null,null,null,null,null,null,null,null,null,null,null,null,null,null,null,null,null,null,null,null,"Раздел 1. Рельсовый путь № 44",null,null,null,null,1.0249999999999999,1.02,1.03,1.2,282.41370103552271]
[null,"101-0324","Кислород технический: газообразный",null,null,"м3","16,58\n108,5",983.01,null,983.01,null,983.01,null,1.052,1.0209999999999999,1.0349999999999999,null,null,null,null,null,null,null,null,null,null,null,null,null,null,null,null,null,null,null,null,null,null,null,null,null,null,null,null,null,null,null,null,null,null,null,null,null,null,null,null,null,"Раздел 1. Рельсовый путь № 45",null,null,null,null,1.0249999999999999,1.02,1.03,1.2,1412.154698890733]
[null,"101-0797","Проволока горячекатаная в мотках, диаметром 6,3-6,5 мм",null,null,"т","0,0002\n0,0013",3.85,null,3.85,null,3.85,null,1.052,1.0209999999999999,1.0349999999999999,null,null,null,null,null,null,null,null,null,null,null,null,null,null,null,null,null,null,null,null,null,null,null,null,null,null,null,null,null,null,null,null,null,null,null,null,null,null,null,null,null,"Раздел 1. Рельсовый путь № 46",null,null,null,null,1.0249999999999999,1.02,1.03,1.2,5.5307632584910857]
[null,"101-1515","Электроды диаметром: 4 мм Э46",null,null,"т","0,1\n0,6544",6754.59,null,6754.59,null,6754.59,null,1.052,1.0209999999999999,1.0349999999999999,null,null,null,null,null,null,null,null,null,null,null,null,null,null,null,null,null,null,null,null,null,null,null,null,null,null,null,null,null,null,null,null,null,null,null,null,null,null,null,null,null,"Раздел 1. Рельсовый путь № 47",null,null,null,null,1.0249999999999999,1.02,1.03,1.2,9703.3865449795558]
[null,"101-1805","Гвозди строительные",null,null,"т","0,0008\n0,0052",55.5,null,55.5,null,55.5,null,1.052,1.0209999999999999,1.0349999999999999,null,null,null,null,null,null,null,null,null,null,null,null,null,null,null,null,null,null,null,null,null,null,null,null,null,null,null,null,null,null,null,null,null,null,null,null,null,null,null,null,null,"Раздел 1. Рельсовый путь № 48",null,null,null,null,1.0249999999999999,1.02,1.03,1.2,79.729184635390965]
[null,"101-2278","Пропан-бутан, смесь техническая",null,null,"кг","5\n32,72",173.42,null,173.42,null,173.42,null,1.052,1.0209999999999999,1.0349999999999999,null,null,null,null,null,null,null,null,null,null,null,null,null,null,null,null,null,null,null,null,null,null,null,null,null,null,null,null,null,null,null,null,null,null,null,null,null,null,null,null,null,"Раздел 1. Рельсовый путь № 49",null,null,null,null,1.0249999999999999,1.02,1.03,1.2,249.12856215260359]
[null,"101-2467","Растворитель марки: Р-4",null,null,"т","0,0005\n0,0033",51.19,null,51.19,null,51.19,null,1.052,1.0209999999999999,1.0349999999999999,null,null,null,null,null,null,null,null,null,null,null,null,null,null,null,null,null,null,null,null,null,null,null,null,null,null,null,null,null,null,null,null,null,null,null,null,null,null,null,null,null,"Раздел 1. Рельсовый путь № 50",null,null,null,null,1.0249999999999999,1.02,1.03,1.2,73.537602909651596]
[null,"102-0023","Бруски обрезные хвойных пород длиной: 4-6,5 м, шириной 75-150 мм, толщиной 40-75 мм, I сорта",null,null,"м3","0,08\n0,5235",1357.54,null,1357.54,null,1357.54,null,1.052,1.0209999999999999,1.0349999999999999,null,null,null,null,null,null,null,null,null,null,null,null,null,null,null,null,null,null,null,null,null,null,null,null,null,null,null,null,null,null,null,null,null,null,null,null,null,null,null,null,null,"Раздел 1. Рельсовый путь № 51",null,null,null,null,1.0249999999999999,1.02,1.03,1.2,1950.1902218005159]
[null,"113-0021","Грунтовка: ГФ-021 красно-коричневая",null,null,"т","0,0026\n0,017",312.01,null,312.01,null,312.01,null,1.052,1.0209999999999999,1.0349999999999999,null,null,null,null,null,null,null,null,null,null,null,null,null,null,null,null,null,null,null,null,null,null,null,null,null,null,null,null,null,null,null,null,null,null,null,null,null,null,null,null,null,"Раздел 1. Рельсовый путь № 52",null,null,null,null,1.0249999999999999,1.02,1.03,1.2,448.22167383942951]
["П,Н","201-0631","Детали крепления рельсов",null,null,"т","0\n0",0,null,0,null,0,null,1.052,1.0209999999999999,1.0349999999999999,null,null,null,null,null,null,null,null,null,null,null,null,null,null,null,null,null,null,null,null,null,null,null,null,null,null,null,null,null,null,null,null,null,null,null,null,null,null,null,null,null,"Раздел 1. Рельсовый путь № 53",null,null,null,null,1.0249999999999999,1.02,1.03,1.2,0]
["П,Н","201-9002","Конструкции стальные",null,null,"т","0\n0",0,null,0,null,0,null,1.052,1.0209999999999999,1.0349999999999999,null,null,null,null,null,null,null,null,null,null,null,null,null,null,null,null,null,null,null,null,null,null,null,null,null,null,null,null,null,null,null,null,null,null,null,null,null,null,null,null,null,"Раздел 1. Рельсовый путь № 54",null,null,null,null,1.0249999999999999,1.02,1.03,1.2,0]
[null,"508-0097","Канат двойной свивки типа ТК, конструкции 6х19(1+6+12)+1 о.с., оцинкованный из проволок марки В, маркировочная группа: 1770 н/мм2, диаметром 5,5 мм",null,null,"10 м","0,09\n0,589",40.46,null,40.46,null,40.46,null,1.052,1.0209999999999999,1.0349999999999999,null,null,null,null,null,null,null,null,null,null,null,null,null,null,null,null,null,null,null,null,null,null,null,null,null,null,null,null,null,null,null,null,null,null,null,null,null,null,null,null,null,"Раздел 1. Рельсовый путь № 55",null,null,null,null,1.0249999999999999,1.02,1.03,1.2,58.123293880142683]
["8\n*","ТССЦ-202-0017","Пути подкрановые, марка стали: С 255, крепления и упоры//Рельсовые комплекты",null,null,"т",12.101000000000001,2948203.03,null,2948203.03,null,2948203.03,null,1.052,1.0209999999999999,1.0349999999999999,null,null,null,null,null,null,null,null,null,null,null,null,null,null,null,null,null,null,null,null,null,null,null,null,null,null,null,null,null,null,null,null,null,null,null,null,null,null,null,null,null,"Раздел 1. Рельсовый путь № 56",null,null,null,null,1.0249999999999999,1.02,1.03,1.2,4235276.1030898932]
["9\n*","ТССЦ-202-0016","Пути подкрановые, марка стали: С 255, рельсы железнодорожные",null,null,"т",4.1096320000000004,421675.99,null,421675.99,null,421675.99,null,1.052,1.0209999999999999,1.0349999999999999,null,null,null,null,null,null,null,null,null,null,null,null,null,null,null,null,null,null,null,null,null,null,null,null,null,null,null,null,null,null,null,null,null,null,null,null,null,null,null,null,null,"Раздел 1. Рельсовый путь № 57",null,null,null,null,1.0249999999999999,1.02,1.03,1.2,605763.65518957248]
["10","ТЕР46-08-012-05","Установка анкеров в отверстия глубиной 100 мм с применением смесей серии MASTERFLOW, диаметр анкера: 20 мм и более",null,null,"100 шт.",13.06,93980.83,null,null,null,93980.83,null,1.052,1.0209999999999999,1.0349999999999999,null,null,null,null,null,null,null,null,null,null,null,null,null,null,null,null,null,null,null,null,null,null,null,null,null,null,null,null,null,null,null,null,null,null,null,null,null,null,null,null,null,"Раздел 1. Рельсовый путь № 58",null,null,null,null,1.0249999999999999,1.02,1.03,1.2,0]
[null,null,null,null,"Итого c накладными и см. прибылью",null,null,235359.99,null,null,null,235359.99,null,1.052,1.0209999999999999,1.0349999999999999,null,null,null,null,null,null,null,null,null,null,null,null,null,null,null,null,null,null,null,null,null,null,null,null,null,null,null,null,null,null,null,null,null,null,null,null,null,null,null,null,null,"Раздел 1. Рельсовый путь № 61",null,null,null,null,1.0249999999999999,1.02,1.03,1.2,0]
["П,Н","101-9277","Материал серии MASTERFLOW",null,null,"кг","0\n0",0,null,0,null,0,null,1.052,1.0209999999999999,1.0349999999999999,null,null,null,null,null,null,null,null,null,null,null,null,null,null,null,null,null,null,null,null,null,null,null,null,null,null,null,null,null,null,null,null,null,null,null,null,null,null,null,null,null,"Раздел 1. Рельсовый путь № 62",null,null,null,null,1.0249999999999999,1.02,1.03,1.2,0]
["П,Н","101-9662","Болты анкерные",null,null,"т","0\n0",0,null,0,null,0,null,1.052,1.0209999999999999,1.0349999999999999,null,null,null,null,null,null,null,null,null,null,null,null,null,null,null,null,null,null,null,null,null,null,null,null,null,null,null,null,null,null,null,null,null,null,null,null,null,null,null,null,null,"Раздел 1. Рельсовый путь № 63",null,null,null,null,1.0249999999999999,1.02,1.03,1.2,0]
["11","ТЕР46-08-012-10","На каждые 10 мм изменения глубины отверстия добавлять (уменьшать) к расценке: 46-08-012-05",null,null,"100 шт.",13.06,255132.06,null,null,null,255132.06,null,1.052,1.0209999999999999,1.0349999999999999,null,null,null,null,null,null,null,null,null,null,null,null,null,null,null,null,null,null,null,null,null,null,null,null,null,null,null,null,null,null,null,null,null,null,null,null,null,null,null,null,null,"Раздел 1. Рельсовый путь № 64",null,null,null,null,1.0249999999999999,1.02,1.03,1.2,0]
[null,null,null,null,"Итого c накладными и см. прибылью",null,null,640771.39,null,null,null,640771.39,null,1.052,1.0209999999999999,1.0349999999999999,null,null,null,null,null,null,null,null,null,null,null,null,null,null,null,null,null,null,null,null,null,null,null,null,null,null,null,null,null,null,null,null,null,null,null,null,null,null,null,null,null,"Раздел 1. Рельсовый путь № 67",null,null,null,null,1.0249999999999999,1.02,1.03,1.2,{"$f":"J70*N70*O70*P70*BK70*BL70*BM70*BN70","v":0}]
["П,Н","101-9277","Материал серии MASTERFLOW",null,null,"кг","0\n0",0,null,0,null,0,null,1.052,1.0209999999999999,1.0349999999999999,null,null,null,null,null,null,null,null,null,null,null,null,null,null,null,null,null,null,null,null,null,null,null,null,null,null,null,null,null,null,null,null,null,null,null,null,null,null,null,null,null,"Раздел 1. Рельсовый путь № 68",null,null,null,null,1.0249999999999999,1.02,1.03,1.2,0]
["П,Н","101-9662","Болты анкерные",null,null,"т","0\n0",0,null,0,null,0,null,1.052,1.0209999999999999,1.0349999999999999,null,null,null,null,null,null,null,null,null,null,null,null,null,null,null,null,null,null,null,null,null,null,null,null,null,null,null,null,null,null,null,null,null,null,null,null,null,null,null,null,null,"Раздел 1. Рельсовый путь № 69",null,null,null,null,1.0249999999999999,1.02,1.03,1.2,0]
["12\n*","ТССЦ-509-5787","Анкер химический (капсула с клеевым составом) Hilti HIT-HY 150/330",null,null,"шт.",1306,3877002.05,null,3877002.05,null,3877002.05,null,1.052,1.0209999999999999,1.0349999999999999,null,null,null,null,null,null,null,null,null,null,null,null,null,null,null,null,null,null,null,null,null,null,null,null,null,null,null,null,null,null,null,null,null,null,null,null,null,null,null,null,null,"Раздел 1. Рельсовый путь № 70",null,null,null,null,1.0249999999999999,1.02,1.03,1.2,5569553.374346653]
["13\n*","ТССЦ-509-4617","Шпилька анкерная Hilti: HIT-V-5,8 М24х450 (HAS) для использования с химическими анкерами HIT",null,null,"шт.",1306,1491326.62,null,1491326.62,null,1491326.62,null,1.052,1.0209999999999999,1.0349999999999999,null,null,null,null,null,null,null,null,null,null,null,null,null,null,null,null,null,null,null,null,null,null,null,null,null,null,null,null,null,null,null,null,null,null,null,null,null,null,null,null,null,"Раздел 1. Рельсовый путь № 71",null,null,null,null,1.0249999999999999,1.02,1.03,1.2,2142382.9808586226]
["Раздел 4. Подливка из безусадочного мелкозернистого бетона",null,null,null,null,null,null,null,null,null,null,null,null,1.052,1.0209999999999999,1.0349999999999999,null,null,null,null,null,null,null,null,null,null,null,null,null,null,null,null,null,null,null,null,null,null,null,null,null,null,null,null,null,null,null,null,null,null,null,null,null,null,null,null,null,"Раздел 1. Рельсовый путь № 72",null,null,null,null,1.0249999999999999,1.02,1.03,1.2,0]
["Рельсовый путь № 3 длинна 327,2м толщ (разрез 15-15 лист 282) 54 мм ширина (разрез 15-15 лист 282) - 400 мм",null,null,null,null,null,null,null,null,null,null,null,null,1.052,1.0209999999999999,1.0349999999999999,null,null,null,null,null,null,null,null,null,null,null,null,null,null,null,null,null,null,null,null,null,null,null,null,null,null,null,null,null,null,null,null,null,null,null,null,null,null,null,null,null,"Раздел 1. Рельсовый путь № 73",null,null,null,null,1.0249999999999999,1.02,1.03,1.2,0]
["Рельсовый путь № 2 длинна 342,73 м толщ (разрез 3-3 лист 282) 130 мм ширина (разрез 3-3 лист 282) - 600 мм",null,null,null,null,null,null,null,null,null,null,null,null,1.052,1.0209999999999999,1.0349999999999999,null,null,null,null,null,null,null,null,null,null,null,null,null,null,null,null,null,null,null,null,null,null,null,null,null,null,null,null,null,null,null,null,null,null,null,null,null,null,null,null,null,"Раздел 1. Рельсовый путь № 74",null,null,null,null,1.0249999999999999,1.02,1.03,1.2,0]
["Рельсовый путь № 1 длинна 324,95 м толщ (разрез 1-1 лист 282) 150 мм ширина (разрез 1-1 лист 282) - 600 мм",null,null,null,null,null,null,null,null,null,null,null,null,1.052,1.0209999999999999,1.0349999999999999,null,null,null,null,null,null,null,null,null,null,null,null,null,null,null,null,null,null,null,null,null,null,null,null,null,null,null,null,null,null,null,null,null,null,null,null,null,null,null,null,null,"Раздел 1. Рельсовый путь № 75",null,null,null,null,1.0249999999999999,1.02,1.03,1.2,0]
["Раздел 5. Крепление опорных деталей. Лист 282.2, 282.3",null,null,null,null,null,null,null,null,null,null,null,null,1.052,1.0209999999999999,1.0349999999999999,null,null,null,null,null,null,null,null,null,null,null,null,null,null,null,null,null,null,null,null,null,null,null,null,null,null,null,null,null,null,null,null,null,null,null,null,null,null,null,null,null,"Раздел 1. Рельсовый путь № 76",null,null,null,null,1.0249999999999999,1.02,1.03,1.2,0]
["Крепление стоек к ростверку",null,null,null,null,null,null,null,null,null,null,null,null,1.052,1.0209999999999999,1.0349999999999999,null,null,null,null,null,null,null,null,null,null,null,null,null,null,null,null,null,null,null,null,null,null,null,null,null,null,null,null,null,null,null,null,null,null,null,null,null,null,null,null,null,"Раздел 1. Рельсовый путь № 77",null,null,null,null,1.0249999999999999,1.02,1.03,1.2,0]
["14","ТЕР46-08-012-01","Установка анкеров в отверстия глубиной 100 мм с применением смесей серии MASTERFLOW, диаметр анкера: до 8 мм",null,null,"100 шт.",2.96,8833.75,null,null,null,8833.75,null,1.052,1.0209999999999999,1.0349999999999999,null,null,null,null,null,null,null,null,null,null,null,null,null,null,null,null,null,null,null,null,null,null,null,null,null,null,null,null,null,null,null,null,null,null,null,null,null,null,null,null,null,"Раздел 1. Рельсовый путь № 78",null,null,null,null,1.0249999999999999,1.02,1.03,1.2,0]
[null,null,null,null,"Итого c накладными и см. прибылью",null,null,22233.18,null,null,null,22233.18,null,1.052,1.0209999999999999,1.0349999999999999,null,null,null,null,null,null,null,null,null,null,null,null,null,null,null,null,null,null,null,null,null,null,null,null,null,null,null,null,null,null,null,null,null,null,null,null,null,null,null,null,null,"Раздел 1. Рельсовый путь № 81",null,null,null,null,1.0249999999999999,1.02,1.03,1.2,0]
["П,Н","101-9277","Материал серии MASTERFLOW",null,null,"кг","0\n0",0,null,0,null,0,null,1.052,1.0209999999999999,1.0349999999999999,null,null,null,null,null,null,null,null,null,null,null,null,null,null,null,null,null,null,null,null,null,null,null,null,null,null,null,null,null,null,null,null,null,null,null,null,null,null,null,null,null,"Раздел 1. Рельсовый путь № 82",null,null,null,null,1.0249999999999999,1.02,1.03,1.2,0]
["П,Н","101-9662","Болты анкерные",null,null,"т","0\n0",0,null,0,null,0,null,1.052,1.0209999999999999,1.0349999999999999,null,null,null,null,null,null,null,null,null,null,null,null,null,null,null,null,null,null,null,null,null,null,null,null,null,null,null,null,null,null,null,null,null,null,null,null,null,null,null,null,null,"Раздел 1. Рельсовый путь № 83",null,null,null,null,1.0249999999999999,1.02,1.03,1.2,0]
["15","ТЕР46-08-012-06","На каждые 10 мм изменения глубины отверстия добавлять (уменьшать) к расценке: 46-08-012-01",null,null,"100 шт.",-2.96,-3027.44,null,null,null,-3027.44,null,1.052,1.0209999999999999,1.0349999999999999,null,null,null,null,null,null,null,null,null,null,null,null,null,null,null,null,null,null,null,null,null,null,null,null,null,null,null,null,null,null,null,null,null,null,null,null,null,null,null,null,null,"Раздел 1. Рельсовый путь № 84",null,null,null,null,1.0249999999999999,1.02,1.03,1.2,0]
[null,null,null,null,"Итого c накладными и см. прибылью",null,null,-7609.46,null,null,null,-7609.46,null,1.052,1.0209999999999999,1.0349999999999999,null,null,null,null,null,null,null,null,null,null,null,null,null,null,null,null,null,null,null,null,null,null,null,null,null,null,null,null,null,null,null,null,null,null,null,null,null,null,null,null,null,"Раздел 1. Рельсовый путь № 87",null,null,null,null,1.0249999999999999,1.02,1.03,1.2,0]
["П,Н","101-9277","Материал серии MASTERFLOW",null,null,"кг","0\n0",0,null,0,null,0,null,1.052,1.0209999999999999,1.0349999999999999,null,null,null,null,null,null,null,null,null,null,null,null,null,null,null,null,null,null,null,null,null,null,null,null,null,null,null,null,null,null,null,null,null,null,null,null,null,null,null,null,null,"Раздел 1. Рельсовый путь № 88",null,null,null,null,1.0249999999999999,1.02,1.03,1.2,0]
["П,Н","101-9662","Болты анкерные",null,null,"т","0\n0",0,null,0,null,0,null,1.052,1.0209999999999999,1.0349999999999999,null,null,null,null,null,null,null,null,null,null,null,null,null,null,null,null,null,null,null,null,null,null,null,null,null,null,null,null,null,null,null,null,null,null,null,null,null,null,null,null,null,"Раздел 1. Рельсовый путь № 89",null,null,null,null,1.0249999999999999,1.02,1.03,1.2,0]
["16\n*","ТССЦ-509-2631","Капсула с клеевым составом Hilti HVU-TZ M20",null,null,"шт.",296,89391.05,null,89391.05,null,89391.05,null,1.052,1.0209999999999999,1.0349999999999999,null,null,null,null,null,null,null,null,null,null,null,null,null,null,null,null,null,null,null,null,null,null,null,null,null,null,null,null,null,null,null,null,null,null,null,null,null,null,null,null,null,"Раздел 1. Рельсовый путь № 90",null,null,null,null,1.0249999999999999,1.02,1.03,1.2,128415.77531894532]
["17\n*","ТССЦ-509-4616","Шпилька анкерная Hilti: HIT-V-5,8 М16х300 (HAS) для использования с химическими анкерами HIT",null,null,"шт.",296,101578.44,null,101578.44,null,101578.44,null,1.052,1.0209999999999999,1.0349999999999999,null,null,null,null,null,null,null,null,null,null,null,null,null,null,null,null,null,null,null,null,null,null,null,null,null,null,null,null,null,null,null,null,null,null,null,null,null,null,null,null,null,"Раздел 1. Рельсовый путь № 91",null,null,null,null,1.0249999999999999,1.02,1.03,1.2,145923.71527450418]
["Крепление тормозных упоров крацер-крана к роствергу",null,null,null,null,null,null,null,null,null,null,null,null,1.052,1.0209999999999999,1.0349999999999999,null,null,null,null,null,null,null,null,null,null,null,null,null,null,null,null,null,null,null,null,null,null,null,null,null,null,null,null,null,null,null,null,null,null,null,null,null,null,null,null,null,"Раздел 1. Рельсовый путь № 92",null,null,null,null,1.0249999999999999,1.02,1.03,1.2,0]
["18","ТЕР46-08-012-05","Установка анкеров в отверстия глубиной 100 мм с применением смесей серии MASTERFLOW, диаметр анкера: 20 мм и более",null,null,"100 шт.",0.24,1727.06,null,null,null,1727.06,null,1.052,1.0209999999999999,1.0349999999999999,null,null,null,null,null,null,null,null,null,null,null,null,null,null,null,null,null,null,null,null,null,null,null,null,null,null,null,null,null,null,null,null,null,null,null,null,null,null,null,null,null,"Раздел 1. Рельсовый путь № 93",null,null,null,null,1.0249999999999999,1.02,1.03,1.2,0]
[null,null,null,null,"Итого c накладными и см. прибылью",null,null,4325.1499999999996,null,null,null,4325.1499999999996,null,1.052,1.0209999999999999,1.0349999999999999,null,null,null,null,null,null,null,null,null,null,null,null,null,null,null,null,null,null,null,null,null,null,null,null,null,null,null,null,null,null,null,null,null,null,null,null,null,null,null,null,null,"Раздел 1. Рельсовый путь № 96",null,null,null,null,1.0249999999999999,1.02,1.03,1.2,0]
["П,Н","101-9277","Материал серии MASTERFLOW",null,null,"кг","0\n0",0,null,0,null,0,null,1.052,1.0209999999999999,1.0349999999999999,null,null,null,null,null,null,null,null,null,null,null,null,null,null,null,null,null,null,null,null,null,null,null,null,null,null,null,null,null,null,null,null,null,null,null,null,null,null,null,null,null,"Раздел 1. Рельсовый путь № 97",null,null,null,null,1.0249999999999999,1.02,1.03,1.2,0]
["П,Н","101-9662","Болты анкерные",null,null,"т","0\n0",0,null,0,null,0,null,1.052,1.0209999999999999,1.0349999999999999,null,null,null,null,null,null,null,null,null,null,null,null,null,null,null,null,null,null,null,null,null,null,null,null,null,null,null,null,null,null,null,null,null,null,null,null,null,null,null,null,null,"Раздел 1. Рельсовый путь № 98",null,null,null,null,1.0249999999999999,1.02,1.03,1.2,0]
["19","ТЕР46-08-012-10","На каждые 10 мм изменения глубины отверстия добавлять (уменьшать) к расценке: 46-08-012-05",null,null,"100 шт.",0.24,6251.32,null,null,null,6251.32,null,1.052,1.0209999999999999,1.0349999999999999,null,null,null,null,null,null,null,null,null,null,null,null,null,null,null,null,null,null,null,null,null,null,null,null,null,null,null,null,null,null,null,null,null,null,null,null,null,null,null,null,null,"Раздел 1. Рельсовый путь № 99",null,null,null,null,1.0249999999999999,1.02,1.03,1.2,0]
[null,null,null,null,"Итого c накладными и см. прибылью",null,null,15700.37,null,null,null,15700.37,null,1.052,1.0209999999999999,1.0349999999999999,null,null,null,null,null,null,null,null,null,null,null,null,null,null,null,null,null,null,null,null,null,null,null,null,null,null,null,null,null,null,null,null,null,null,null,null,null,null,null,null,null,"Раздел 1. Рельсовый путь № 102",null,null,null,null,1.0249999999999999,1.02,1.03,1.2,0]
["П,Н","101-9277","Материал серии MASTERFLOW",null,null,"кг","0\n0",0,null,0,null,0,null,1.052,1.0209999999999999,1.0349999999999999,null,null,null,null,null,null,null,null,null,null,null,null,null,null,null,null,null,null,null,null,null,null,null,null,null,null,null,null,null,null,null,null,null,null,null,null,null,null,null,null,null,"Раздел 1. Рельсовый путь № 103",null,null,null,null,1.0249999999999999,1.02,1.03,1.2,0]
["П,Н","101-9662","Болты анкерные",null,null,"т","0\n0",0,null,0,null,0,null,1.052,1.0209999999999999,1.0349999999999999,null,null,null,null,null,null,null,null,null,null,null,null,null,null,null,null,null,null,null,null,null,null,null,null,null,null,null,null,null,null,null,null,null,null,null,null,null,null,null,null,null,"Раздел 1. Рельсовый путь № 104",null,null,null,null,1.0249999999999999,1.02,1.03,1.2,0]
["20\n*","ТССЦ-509-4614","Анкер химический (капсула с клеевым составом) Hilti HVU М24/210",null,null,"шт.",24,18828.580000000002,null,18828.580000000002,null,18828.580000000002,null,1.052,1.0209999999999999,1.0349999999999999,null,null,null,null,null,null,null,null,null,null,null,null,null,null,null,null,null,null,null,null,null,null,null,null,null,null,null,null,null,null,null,null,null,null,null,null,null,null,null,null,null,"Раздел 1. Рельсовый путь № 105",null,null,null,null,1.0249999999999999,1.02,1.03,1.2,27048.420382742886]
["21\n*","ТССЦ-509-4617","Шпилька анкерная Hilti: HIT-V-5,8 М24х450 (HAS) для использования с химическими анкерами HIT",null,null,"шт.",24,27405.7,null,27405.7,null,27405.7,null,1.052,1.0209999999999999,1.0349999999999999,null,null,null,null,null,null,null,null,null,null,null,null,null,null,null,null,null,null,null,null,null,null,null,null,null,null,null,null,null,null,null,null,null,null,null,null,null,null,null,null,null,"Раздел 1. Рельсовый путь № 106",null,null,null,null,1.0249999999999999,1.02,1.03,1.2,39369.984060578987]
["Крепление крацер-крана в сервесном положении",null,null,null,null,null,null,null,null,null,null,null,null,1.052,1.0209999999999999,1.0349999999999999,null,null,null,null,null,null,null,null,null,null,null,null,null,null,null,null,null,null,null,null,null,null,null,null,null,null,null,null,null,null,null,null,null,null,null,null,null,null,null,null,null,"Раздел 1. Рельсовый путь № 107",null,null,null,null,1.0249999999999999,1.02,1.03,1.2,0]
["22","ТЕР46-08-012-01","Установка анкеров в отверстия глубиной 100 мм с применением смесей серии MASTERFLOW, диаметр анкера: до 8 мм",null,null,"100 шт.",0.24,716.25,null,null,null,716.25,null,1.052,1.0209999999999999,1.0349999999999999,null,null,null,null,null,null,null,null,null,null,null,null,null,null,null,null,null,null,null,null,null,null,null,null,null,null,null,null,null,null,null,null,null,null,null,null,null,null,null,null,null,"Раздел 1. Рельсовый путь № 108",null,null,null,null,1.0249999999999999,1.02,1.03,1.2,0]
[null,null,null,null,"Итого c накладными и см. прибылью",null,null,1802.69,null,null,null,1802.69,null,1.052,1.0209999999999999,1.0349999999999999,null,null,null,null,null,null,null,null,null,null,null,null,null,null,null,null,null,null,null,null,null,null,null,null,null,null,null,null,null,null,null,null,null,null,null,null,null,null,null,null,null,"Раздел 1. Рельсовый путь № 111",null,null,null,null,1.0249999999999999,1.02,1.03,1.2,0]
["П,Н","101-9277","Материал серии MASTERFLOW",null,null,"кг","0\n0",0,null,0,null,0,null,1.052,1.0209999999999999,1.0349999999999999,null,null,null,null,null,null,null,null,null,null,null,null,null,null,null,null,null,null,null,null,null,null,null,null,null,null,null,null,null,null,null,null,null,null,null,null,null,null,null,null,null,"Раздел 1. Рельсовый путь № 112",null,null,null,null,1.0249999999999999,1.02,1.03,1.2,0]
["П,Н","101-9662","Болты анкерные",null,null,"т","0\n0",0,null,0,null,0,null,1.052,1.0209999999999999,1.0349999999999999,null,null,null,null,null,null,null,null,null,null,null,null,null,null,null,null,null,null,null,null,null,null,null,null,null,null,null,null,null,null,null,null,null,null,null,null,null,null,null,null,null,"Раздел 1. Рельсовый путь № 113",null,null,null,null,1.0249999999999999,1.02,1.03,1.2,0]
["23","ТЕР46-08-012-06","На каждые 10 мм изменения глубины отверстия добавлять (уменьшать) к расценке: 46-08-012-01",null,null,"100 шт.",0.24,1841.01,null,null,null,1841.01,null,1.052,1.0209999999999999,1.0349999999999999,null,null,null,null,null,null,null,null,null,null,null,null,null,null,null,null,null,null,null,null,null,null,null,null,null,null,null,null,null,null,null,null,null,null,null,null,null,null,null,null,null,"Раздел 1. Рельсовый путь № 114",null,null,null,null,1.0249999999999999,1.02,1.03,1.2,0]
[null,null,null,null,"Итого c накладными и см. прибылью",null,null,4627.38,null,null,null,4627.38,null,1.052,1.0209999999999999,1.0349999999999999,null,null,null,null,null,null,null,null,null,null,null,null,null,null,null,null,null,null,null,null,null,null,null,null,null,null,null,null,null,null,null,null,null,null,null,null,null,null,null,null,null,"Раздел 1. Рельсовый путь № 117",null,null,null,null,1.0249999999999999,1.02,1.03,1.2,0]
["П,Н","101-9277","Материал серии MASTERFLOW",null,null,"кг","0\n0",0,null,0,null,0,null,1.052,1.0209999999999999,1.0349999999999999,null,null,null,null,null,null,null,null,null,null,null,null,null,null,null,null,null,null,null,null,null,null,null,null,null,null,null,null,null,null,null,null,null,null,null,null,null,null,null,null,null,"Раздел 1. Рельсовый путь № 118",null,null,null,null,1.0249999999999999,1.02,1.03,1.2,0]
["П,Н","101-9662","Болты анкерные",null,null,"т","0\n0",0,null,0,null,0,null,1.052,1.0209999999999999,1.0349999999999999,null,null,null,null,null,null,null,null,null,null,null,null,null,null,null,null,null,null,null,null,null,null,null,null,null,null,null,null,null,null,null,null,null,null,null,null,null,null,null,null,null,"Раздел 1. Рельсовый путь № 119",null,null,null,null,1.0249999999999999,1.02,1.03,1.2,0]
["24\n*","ТССЦ-509-2631","Капсула с клеевым составом Hilti HVU-TZ M20",null,null,"шт.",24,7247.92,null,7247.92,null,7247.92,null,1.052,1.0209999999999999,1.0349999999999999,null,null,null,null,null,null,null,null,null,null,null,null,null,null,null,null,null,null,null,null,null,null,null,null,null,null,null,null,null,null,null,null,null,null,null,null,null,null,null,null,null,"Раздел 1. Рельсовый путь № 120",null,null,null,null,1.0249999999999999,1.02,1.03,1.2,10412.085619865638]
["25\n*","ТССЦ-509-4616","Шпилька анкерная Hilti: HIT-V-5,8 М16х300 (HAS) для использования с химическими анкерами HIT",null,null,"шт.",24,8236.09,null,8236.09,null,8236.09,null,1.052,1.0209999999999999,1.0349999999999999,null,null,null,null,null,null,null,null,null,null,null,null,null,null,null,null,null,null,null,null,null,null,null,null,null,null,null,null,null,null,null,null,null,null,null,null,null,null,null,null,null,"Раздел 1. Рельсовый путь № 121",null,null,null,null,1.0249999999999999,1.02,1.03,1.2,11831.652978084636]
["Крепление стоек хвостовой станции к ростверку",null,null,null,null,null,null,null,null,null,null,null,null,1.052,1.0209999999999999,1.0349999999999999,null,null,null,null,null,null,null,null,null,null,null,null,null,null,null,null,null,null,null,null,null,null,null,null,null,null,null,null,null,null,null,null,null,null,null,null,null,null,null,null,null,"Раздел 1. Рельсовый путь № 122",null,null,null,null,1.0249999999999999,1.02,1.03,1.2,0]
["26","ТЕР46-08-012-05","Установка анкеров в отверстия глубиной 100 мм с применением смесей серии MASTERFLOW, диаметр анкера: 20 мм и более",null,null,"100 шт.",0.16,1151.3699999999999,null,null,null,1151.3699999999999,null,1.052,1.0209999999999999,1.0349999999999999,null,null,null,null,null,null,null,null,null,null,null,null,null,null,null,null,null,null,null,null,null,null,null,null,null,null,null,null,null,null,null,null,null,null,null,null,null,null,null,null,null,"Раздел 1. Рельсовый путь № 123",null,null,null,null,1.0249999999999999,1.02,1.03,1.2,0]
[null,null,null,null,"Итого c накладными и см. прибылью",null,null,2883.43,null,null,null,2883.43,null,1.052,1.0209999999999999,1.0349999999999999,null,null,null,null,null,null,null,null,null,null,null,null,null,null,null,null,null,null,null,null,null,null,null,null,null,null,null,null,null,null,null,null,null,null,null,null,null,null,null,null,null,"Раздел 1. Рельсовый путь № 126",null,null,null,null,1.0249999999999999,1.02,1.03,1.2,0]
["П,Н","101-9277","Материал серии MASTERFLOW",null,null,"кг","0\n0",0,null,0,null,0,null,1.052,1.0209999999999999,1.0349999999999999,null,null,null,null,null,null,null,null,null,null,null,null,null,null,null,null,null,null,null,null,null,null,null,null,null,null,null,null,null,null,null,null,null,null,null,null,null,null,null,null,null,"Раздел 1. Рельсовый путь № 127",null,null,null,null,1.0249999999999999,1.02,1.03,1.2,0]
["П,Н","101-9662","Болты анкерные",null,null,"т","0\n0",0,null,0,null,0,null,1.052,1.0209999999999999,1.0349999999999999,null,null,null,null,null,null,null,null,null,null,null,null,null,null,null,null,null,null,null,null,null,null,null,null,null,null,null,null,null,null,null,null,null,null,null,null,null,null,null,null,null,"Раздел 1. Рельсовый путь № 128",null,null,null,null,1.0249999999999999,1.02,1.03,1.2,0]
["27","ТЕР46-08-012-10","На каждые 10 мм изменения глубины отверстия добавлять (уменьшать) к расценке: 46-08-012-05",null,null,"100 шт.",0.16,3125.66,null,null,null,3125.66,null,1.052,1.0209999999999999,1.0349999999999999,null,null,null,null,null,null,null,null,null,null,null,null,null,null,null,null,null,null,null,null,null,null,null,null,null,null,null,null,null,null,null,null,null,null,null,null,null,null,null,null,null,"Раздел 1. Рельсовый путь № 129",null,null,null,null,1.0249999999999999,1.02,1.03,1.2,0]
[null,null,null,null,"Итого c накладными и см. прибылью",null,null,7850.18,null,null,null,7850.18,null,1.052,1.0209999999999999,1.0349999999999999,null,null,null,null,null,null,null,null,null,null,null,null,null,null,null,null,null,null,null,null,null,null,null,null,null,null,null,null,null,null,null,null,null,null,null,null,null,null,null,null,null,"Раздел 1. Рельсовый путь № 132",null,null,null,null,1.0249999999999999,1.02,1.03,1.2,{"$f":"J119*N119*O119*P119*BK119*BL119*BM119*BN119","v":0}]
["П,Н","101-9277","Материал серии MASTERFLOW",null,null,"кг","0\n0",0,null,0,null,0,null,1.052,1.0209999999999999,1.0349999999999999,null,null,null,null,null,null,null,null,null,null,null,null,null,null,null,null,null,null,null,null,null,null,null,null,null,null,null,null,null,null,null,null,null,null,null,null,null,null,null,null,null,"Раздел 1. Рельсовый путь № 133",null,null,null,null,1.0249999999999999,1.02,1.03,1.2,0]
["П,Н","101-9662","Болты анкерные",null,null,"т","0\n0",0,null,0,null,0,null,1.052,1.0209999999999999,1.0349999999999999,null,null,null,null,null,null,null,null,null,null,null,null,null,null,null,null,null,null,null,null,null,null,null,null,null,null,null,null,null,null,null,null,null,null,null,null,null,null,null,null,null,"Раздел 1. Рельсовый путь № 134",null,null,null,null,1.0249999999999999,1.02,1.03,1.2,0]
["28\n*","ТССЦ-509-4614","Анкер химический (капсула с клеевым составом) Hilti HVU М24/210",null,null,"шт.",16,12552.38,null,12552.38,null,12552.38,null,1.052,1.0209999999999999,1.0349999999999999,null,null,null,null,null,null,null,null,null,null,null,null,null,null,null,null,null,null,null,null,null,null,null,null,null,null,null,null,null,null,null,null,null,null,null,null,null,null,null,null,null,"Раздел 1. Рельсовый путь № 135",null,null,null,null,1.0249999999999999,1.02,1.03,1.2,18032.270678082677]
["29\n*","ТССЦ-509-4617","Шпилька анкерная Hilti: HIT-V-5,8 М24х450 (HAS) для использования с химическими анкерами HIT",null,null,"шт.",16,18270.46,null,18270.46,null,18270.46,null,1.052,1.0209999999999999,1.0349999999999999,null,null,null,null,null,null,null,null,null,null,null,null,null,null,null,null,null,null,null,null,null,null,null,null,null,null,null,null,null,null,null,null,null,null,null,null,null,null,null,null,null,"Раздел 1. Рельсовый путь № 136",null,null,null,null,1.0249999999999999,1.02,1.03,1.2,26246.646463306763]
["30","ТЕР46-03-014-01","Сверление вертикальных отверстий в железобетонных конструкциях полов перфоратором глубиной 200 мм диаметром: 20 мм",null,null,"100 отверстий",0.08,372.22,null,null,null,372.22,null,1.052,1.0209999999999999,1.0349999999999999,null,null,null,null,null,null,null,null,null,null,null,null,null,null,null,null,null,null,null,null,null,null,null,null,null,null,null,null,null,null,null,null,null,null,null,null,null,null,null,null,null,"Раздел 1. Рельсовый путь № 137",null,null,null,null,1.0249999999999999,1.02,1.03,1.2,0]
[null,null,null,null,"Итого c накладными и см. прибылью",null,null,743.61,null,null,null,743.61,null,1.052,1.0209999999999999,1.0349999999999999,null,null,null,null,null,null,null,null,null,null,null,null,null,null,null,null,null,null,null,null,null,null,null,null,null,null,null,null,null,null,null,null,null,null,null,null,null,null,null,null,null,"Раздел 1. Рельсовый путь № 140",null,null,null,null,1.0249999999999999,1.02,1.03,1.2,0]
["31","ТЕР46-03-014-14","На каждые 10 мм изменения глубины сверления добавлять или исключать: к расценке 46-03-014-01",null,null,"100 отверстий",-0.08,-159.29,null,null,null,-159.29,null,1.052,1.0209999999999999,1.0349999999999999,null,null,null,null,null,null,null,null,null,null,null,null,null,null,null,null,null,null,null,null,null,null,null,null,null,null,null,null,null,null,null,null,null,null,null,null,null,null,null,null,null,"Раздел 1. Рельсовый путь № 141",null,null,null,null,1.0249999999999999,1.02,1.03,1.2,0]
[null,null,null,null,"Итого c накладными и см. прибылью",null,null,-306.02999999999997,null,null,null,-306.02999999999997,null,1.052,1.0209999999999999,1.0349999999999999,null,null,null,null,null,null,null,null,null,null,null,null,null,null,null,null,null,null,null,null,null,null,null,null,null,null,null,null,null,null,null,null,null,null,null,null,null,null,null,null,null,"Раздел 1. Рельсовый путь № 144",null,null,null,null,1.0249999999999999,1.02,1.03,1.2,0]
["32","ТЕР06-01-015-03","Установка анкерных болтов: при бетонировании со связями из арматуры",null,null,"1 т",2.317E-3,328.46,null,193.27,null,328.46,null,1.052,1.0209999999999999,1.0349999999999999,null,null,null,null,null,null,null,null,null,null,null,null,null,null,null,null,null,null,null,null,null,null,null,null,null,null,null,null,null,null,null,null,null,null,null,null,null,null,null,null,null,"Раздел 1. Рельсовый путь № 145",null,null,null,null,1.0249999999999999,1.02,1.03,1.2,277.64431557625244]
[null,null,null,null,"Итого c накладными и см. прибылью",null,null,541.47,null,null,null,541.47,null,1.052,1.0209999999999999,1.0349999999999999,null,null,null,null,null,null,null,null,null,null,null,null,null,null,null,null,null,null,null,null,null,null,null,null,null,null,null,null,null,null,null,null,null,null,null,null,null,null,null,null,null,"Раздел 1. Рельсовый путь № 148",null,null,null,null,1.0249999999999999,1.02,1.03,1.2,0]
[null,"101-1513","Электроды диаметром: 4 мм Э42",null,null,"т","0,002\n0",0,null,0,null,0,null,1.052,1.0209999999999999,1.0349999999999999,null,null,null,null,null,null,null,null,null,null,null,null,null,null,null,null,null,null,null,null,null,null,null,null,null,null,null,null,null,null,null,null,null,null,null,null,null,null,null,null,null,"Раздел 1. Рельсовый путь № 149",null,null,null,null,1.0249999999999999,1.02,1.03,1.2,0]
[null,"201-0798","Кондуктор инвентарный металлический",null,null,"шт.","0,01\n0",0,null,0,null,0,null,1.052,1.0209999999999999,1.0349999999999999,null,null,null,null,null,null,null,null,null,null,null,null,null,null,null,null,null,null,null,null,null,null,null,null,null,null,null,null,null,null,null,null,null,null,null,null,null,null,null,null,null,"Раздел 1. Рельсовый путь № 150",null,null,null,null,1.0249999999999999,1.02,1.03,1.2,0]
[null,"204-0005","Горячекатаная арматурная сталь гладкая класса А-I, диаметром: 14 мм",null,null,"т","0,09\n0,0002",1.2,null,1.2,null,1.2,null,1.052,1.0209999999999999,1.0349999999999999,null,null,null,null,null,null,null,null,null,null,null,null,null,null,null,null,null,null,null,null,null,null,null,null,null,null,null,null,null,null,null,null,null,null,null,null,null,null,null,null,null,"Раздел 1. Рельсовый путь № 151",null,null,null,null,1.0249999999999999,1.02,1.03,1.2,1.7238742623868315]
[null,"204-0059","Анкерные детали из прямых или гнутых круглых стержней с резьбой (в комплекте с шайбами и гайками или без них),: поставляемые отдельно",null,null,"т","1\n0,0023",21.1,null,21.1,null,21.1,null,1.052,1.0209999999999999,1.0349999999999999,null,null,null,null,null,null,null,null,null,null,null,null,null,null,null,null,null,null,null,null,null,null,null,null,null,null,null,null,null,null,null,null,null,null,null,null,null,null,null,null,null,"Раздел 1. Рельсовый путь № 152",null,null,null,null,1.0249999999999999,1.02,1.03,1.2,30.311455780301792]
["Крепление тормазных упоров мобильного бункера",null,null,null,null,null,null,null,null,null,null,null,null,1.052,1.0209999999999999,1.0349999999999999,null,null,null,null,null,null,null,null,null,null,null,null,null,null,null,null,null,null,null,null,null,null,null,null,null,null,null,null,null,null,null,null,null,null,null,null,null,null,null,null,null,"Раздел 1. Рельсовый путь № 153",null,null,null,null,1.0249999999999999,1.02,1.03,1.2,0]
["33","ТЕР46-08-012-05","Установка анкеров в отверстия глубиной 100 мм с применением смесей серии MASTERFLOW, диаметр анкера: 20 мм и более",null,null,"100 шт.",0.18,1295.3,null,null,null,1295.3,null,1.052,1.0209999999999999,1.0349999999999999,null,null,null,null,null,null,null,null,null,null,null,null,null,null,null,null,null,null,null,null,null,null,null,null,null,null,null,null,null,null,null,null,null,null,null,null,null,null,null,null,null,"Раздел 1. Рельсовый путь № 154",null,null,null,null,1.0249999999999999,1.02,1.03,1.2,0]
[null,null,null,null,"Итого c накладными и см. прибылью",null,null,3243.86,null,null,null,3243.86,null,1.052,1.0209999999999999,1.0349999999999999,null,null,null,null,null,null,null,null,null,null,null,null,null,null,null,null,null,null,null,null,null,null,null,null,null,null,null,null,null,null,null,null,null,null,null,null,null,null,null,null,null,"Раздел 1. Рельсовый путь № 157",null,null,null,null,1.0249999999999999,1.02,1.03,1.2,0]
["П,Н","101-9277","Материал серии MASTERFLOW",null,null,"кг","0\n0",0,null,0,null,0,null,1.052,1.0209999999999999,1.0349999999999999,null,null,null,null,null,null,null,null,null,null,null,null,null,null,null,null,null,null,null,null,null,null,null,null,null,null,null,null,null,null,null,null,null,null,null,null,null,null,null,null,null,"Раздел 1. Рельсовый путь № 158",null,null,null,null,1.0249999999999999,1.02,1.03,1.2,0]
["П,Н","101-9662","Болты анкерные",null,null,"т","0\n0",0,null,0,null,0,null,1.052,1.0209999999999999,1.0349999999999999,null,null,null,null,null,null,null,null,null,null,null,null,null,null,null,null,null,null,null,null,null,null,null,null,null,null,null,null,null,null,null,null,null,null,null,null,null,null,null,null,null,"Раздел 1. Рельсовый путь № 159",null,null,null,null,1.0249999999999999,1.02,1.03,1.2,0]
["34","ТЕР46-08-012-10","На каждые 10 мм изменения глубины отверстия добавлять (уменьшать) к расценке: 46-08-012-05",null,null,"100 шт.",0.18,3516.37,null,null,null,3516.37,null,1.052,1.0209999999999999,1.0349999999999999,null,null,null,null,null,null,null,null,null,null,null,null,null,null,null,null,null,null,null,null,null,null,null,null,null,null,null,null,null,null,null,null,null,null,null,null,null,null,null,null,null,"Раздел 1. Рельсовый путь № 160",null,null,null,null,1.0249999999999999,1.02,1.03,1.2,0]
[null,null,null,null,"Итого c накладными и см. прибылью",null,null,8831.4599999999991,null,null,null,8831.4599999999991,null,1.052,1.0209999999999999,1.0349999999999999,null,null,null,null,null,null,null,null,null,null,null,null,null,null,null,null,null,null,null,null,null,null,null,null,null,null,null,null,null,null,null,null,null,null,null,null,null,null,null,null,null,"Раздел 1. Рельсовый путь № 163",null,null,null,null,1.0249999999999999,1.02,1.03,1.2,0]
["П,Н","101-9277","Материал серии MASTERFLOW",null,null,"кг","0\n0",0,null,0,null,0,null,1.052,1.0209999999999999,1.0349999999999999,null,null,null,null,null,null,null,null,null,null,null,null,null,null,null,null,null,null,null,null,null,null,null,null,null,null,null,null,null,null,null,null,null,null,null,null,null,null,null,null,null,"Раздел 1. Рельсовый путь № 164",null,null,null,null,1.0249999999999999,1.02,1.03,1.2,0]
["П,Н","101-9662","Болты анкерные",null,null,"т","0\n0",0,null,0,null,0,null,1.052,1.0209999999999999,1.0349999999999999,null,null,null,null,null,null,null,null,null,null,null,null,null,null,null,null,null,null,null,null,null,null,null,null,null,null,null,null,null,null,null,null,null,null,null,null,null,null,null,null,null,"Раздел 1. Рельсовый путь № 165",null,null,null,null,1.0249999999999999,1.02,1.03,1.2,0]
["35\n*","ТССЦ-509-4614","Анкер химический (капсула с клеевым составом) Hilti HVU М24/210",null,null,"шт.",18,14121.43,null,14121.43,null,14121.43,null,1.052,1.0209999999999999,1.0349999999999999,null,null,null,null,null,null,null,null,null,null,null,null,null,null,null,null,null,null,null,null,null,null,null,null,null,null,null,null,null,null,null,null,null,null,null,null,null,null,null,null,null,"Раздел 1. Рельсовый путь № 166",null,null,null,null,1.0249999999999999,1.02,1.03,1.2,20286.308104247724]
["36\n*","ТССЦ-509-4617","Шпилька анкерная Hilti: HIT-V-5,8 М24х450 (HAS) для использования с химическими анкерами HIT",null,null,"шт.",18,20554.27,null,20554.27,null,20554.27,null,1.052,1.0209999999999999,1.0349999999999999,null,null,null,null,null,null,null,null,null,null,null,null,null,null,null,null,null,null,null,null,null,null,null,null,null,null,null,null,null,null,null,null,null,null,null,null,null,null,null,null,null,"Раздел 1. Рельсовый путь № 167",null,null,null,null,1.0249999999999999,1.02,1.03,1.2,29527.480862624816]
["37","ТЕР46-03-014-01","Сверление вертикальных отверстий в железобетонных конструкциях полов перфоратором глубиной 200 мм диаметром: 20 мм",null,null,"100 отверстий",0.18,837.49,null,null,null,837.49,null,1.052,1.0209999999999999,1.0349999999999999,null,null,null,null,null,null,null,null,null,null,null,null,null,null,null,null,null,null,null,null,null,null,null,null,null,null,null,null,null,null,null,null,null,null,null,null,null,null,null,null,null,"Раздел 1. Рельсовый путь № 168",null,null,null,null,1.0249999999999999,1.02,1.03,1.2,0]
[null,null,null,null,"Итого c накладными и см. прибылью",null,null,1673.1,null,null,null,1673.1,null,1.052,1.0209999999999999,1.0349999999999999,null,null,null,null,null,null,null,null,null,null,null,null,null,null,null,null,null,null,null,null,null,null,null,null,null,null,null,null,null,null,null,null,null,null,null,null,null,null,null,null,null,"Раздел 1. Рельсовый путь № 171",null,null,null,null,1.0249999999999999,1.02,1.03,1.2,0]
["38","ТЕР46-03-014-14","На каждые 10 мм изменения глубины сверления добавлять или исключать: к расценке 46-03-014-01",null,null,"100 отверстий",-0.18,-358.4,null,null,null,-358.4,null,1.052,1.0209999999999999,1.0349999999999999,null,null,null,null,null,null,null,null,null,null,null,null,null,null,null,null,null,null,null,null,null,null,null,null,null,null,null,null,null,null,null,null,null,null,null,null,null,null,null,null,null,"Раздел 1. Рельсовый путь № 172",null,null,null,null,1.0249999999999999,1.02,1.03,1.2,0]
[null,null,null,null,"Итого c накладными и см. прибылью",null,null,-688.55,null,null,null,-688.55,null,1.052,1.0209999999999999,1.0349999999999999,null,null,null,null,null,null,null,null,null,null,null,null,null,null,null,null,null,null,null,null,null,null,null,null,null,null,null,null,null,null,null,null,null,null,null,null,null,null,null,null,null,"Раздел 1. Рельсовый путь № 175",null,null,null,null,1.0249999999999999,1.02,1.03,1.2,0]
["39","ТЕР06-01-015-03","Установка анкерных болтов: при бетонировании со связями из арматуры",null,null,"1 т",4.0860000000000002E-3,579.23,null,340.83,null,579.23,null,1.052,1.0209999999999999,1.0349999999999999,null,null,null,null,null,null,null,null,null,null,null,null,null,null,null,null,null,null,null,null,null,null,null,null,null,null,null,null,null,null,null,null,null,null,null,null,null,null,null,null,null,"Раздел 1. Рельсовый путь № 176",null,null,null,null,1.0249999999999999,1.02,1.03,1.2,489.62338737441985]
[null,null,null,null,"Итого c накладными и см. прибылью",null,null,954.87,null,null,null,954.87,null,1.052,1.0209999999999999,1.0349999999999999,null,null,null,null,null,null,null,null,null,null,null,null,null,null,null,null,null,null,null,null,null,null,null,null,null,null,null,null,null,null,null,null,null,null,null,null,null,null,null,null,null,"Раздел 1. Рельсовый путь № 179",null,null,null,null,1.0249999999999999,1.02,1.03,1.2,0]
[null,"101-1513","Электроды диаметром: 4 мм Э42",null,null,"т","0,002\n0",0,null,0,null,0,null,1.052,1.0209999999999999,1.0349999999999999,null,null,null,null,null,null,null,null,null,null,null,null,null,null,null,null,null,null,null,null,null,null,null,null,null,null,null,null,null,null,null,null,null,null,null,null,null,null,null,null,null,"Раздел 1. Рельсовый путь № 180",null,null,null,null,1.0249999999999999,1.02,1.03,1.2,0]
[null,"201-0798","Кондуктор инвентарный металлический",null,null,"шт.","0,01\n0",0,null,0,null,0,null,1.052,1.0209999999999999,1.0349999999999999,null,null,null,null,null,null,null,null,null,null,null,null,null,null,null,null,null,null,null,null,null,null,null,null,null,null,null,null,null,null,null,null,null,null,null,null,null,null,null,null,null,"Раздел 1. Рельсовый путь № 181",null,null,null,null,1.0249999999999999,1.02,1.03,1.2,0]
[null,"204-0005","Горячекатаная арматурная сталь гладкая класса А-I, диаметром: 14 мм",null,null,"т","0,09\n0,0004",2.41,null,2.41,null,2.41,null,1.052,1.0209999999999999,1.0349999999999999,null,null,null,null,null,null,null,null,null,null,null,null,null,null,null,null,null,null,null,null,null,null,null,null,null,null,null,null,null,null,null,null,null,null,null,null,null,null,null,null,null,"Раздел 1. Рельсовый путь № 182",null,null,null,null,1.0249999999999999,1.02,1.03,1.2,3.462114143626887]
[null,"204-0059","Анкерные детали из прямых или гнутых круглых стержней с резьбой (в комплекте с шайбами и гайками или без них),: поставляемые отдельно",null,null,"т","1\n0,0041",37.619999999999997,null,37.619999999999997,null,37.619999999999997,null,1.052,1.0209999999999999,1.0349999999999999,null,null,null,null,null,null,null,null,null,null,null,null,null,null,null,null,null,null,null,null,null,null,null,null,null,null,null,null,null,null,null,null,null,null,null,null,null,null,null,null,null,"Раздел 1. Рельсовый путь № 183",null,null,null,null,1.0249999999999999,1.02,1.03,1.2,54.043458125827172]
["Крепление стоек вертикального гравитационного натяжного устройтсва к ростверку",null,null,null,null,null,null,null,null,null,null,null,null,1.052,1.0209999999999999,1.0349999999999999,null,null,null,null,null,null,null,null,null,null,null,null,null,null,null,null,null,null,null,null,null,null,null,null,null,null,null,null,null,null,null,null,null,null,null,null,null,null,null,null,null,"Раздел 1. Рельсовый путь № 184",null,null,null,null,1.0249999999999999,1.02,1.03,1.2,0]
["40","ТЕР46-08-012-01","Установка анкеров в отверстия глубиной 100 мм с применением смесей серии MASTERFLOW, диаметр анкера: до 8 мм",null,null,"100 шт.",0.04,119.37,null,null,null,119.37,null,1.052,1.0209999999999999,1.0349999999999999,null,null,null,null,null,null,null,null,null,null,null,null,null,null,null,null,null,null,null,null,null,null,null,null,null,null,null,null,null,null,null,null,null,null,null,null,null,null,null,null,null,"Раздел 1. Рельсовый путь № 185",null,null,null,null,1.0249999999999999,1.02,1.03,1.2,0]
[null,null,null,null,"Итого c накладными и см. прибылью",null,null,300.43,null,null,null,300.43,null,1.052,1.0209999999999999,1.0349999999999999,null,null,null,null,null,null,null,null,null,null,null,null,null,null,null,null,null,null,null,null,null,null,null,null,null,null,null,null,null,null,null,null,null,null,null,null,null,null,null,null,null,"Раздел 1. Рельсовый путь № 188",null,null,null,null,1.0249999999999999,1.02,1.03,1.2,0]
["П,Н","101-9277","Материал серии MASTERFLOW",null,null,"кг","0\n0",0,null,0,null,0,null,1.052,1.0209999999999999,1.0349999999999999,null,null,null,null,null,null,null,null,null,null,null,null,null,null,null,null,null,null,null,null,null,null,null,null,null,null,null,null,null,null,null,null,null,null,null,null,null,null,null,null,null,"Раздел 1. Рельсовый путь № 189",null,null,null,null,1.0249999999999999,1.02,1.03,1.2,0]
["П,Н","101-9662","Болты анкерные",null,null,"т","0\n0",0,null,0,null,0,null,1.052,1.0209999999999999,1.0349999999999999,null,null,null,null,null,null,null,null,null,null,null,null,null,null,null,null,null,null,null,null,null,null,null,null,null,null,null,null,null,null,null,null,null,null,null,null,null,null,null,null,null,"Раздел 1. Рельсовый путь № 190",null,null,null,null,1.0249999999999999,1.02,1.03,1.2,0]
["41","ТЕР46-08-012-06","На каждые 10 мм изменения глубины отверстия добавлять (уменьшать) к расценке: 46-08-012-01",null,null,"100 шт.",0.04,306.83,null,null,null,306.83,null,1.052,1.0209999999999999,1.0349999999999999,null,null,null,null,null,null,null,null,null,null,null,null,null,null,null,null,null,null,null,null,null,null,null,null,null,null,null,null,null,null,null,null,null,null,null,null,null,null,null,null,null,"Раздел 1. Рельсовый путь № 191",null,null,null,null,1.0249999999999999,1.02,1.03,1.2,0]
[null,null,null,null,"Итого c накладными и см. прибылью",null,null,771.22,null,null,null,771.22,null,1.052,1.0209999999999999,1.0349999999999999,null,null,null,null,null,null,null,null,null,null,null,null,null,null,null,null,null,null,null,null,null,null,null,null,null,null,null,null,null,null,null,null,null,null,null,null,null,null,null,null,null,"Раздел 1. Рельсовый путь № 194",null,null,null,null,1.0249999999999999,1.02,1.03,1.2,0]
["П,Н","101-9277","Материал серии MASTERFLOW",null,null,"кг","0\n0",0,null,0,null,0,null,1.052,1.0209999999999999,1.0349999999999999,null,null,null,null,null,null,null,null,null,null,null,null,null,null,null,null,null,null,null,null,null,null,null,null,null,null,null,null,null,null,null,null,null,null,null,null,null,null,null,null,null,"Раздел 1. Рельсовый путь № 195",null,null,null,null,1.0249999999999999,1.02,1.03,1.2,{"$f":"J162*N162*O162*P162*BK162*BL162*BM162*BN162","v":0}]
["П,Н","101-9662","Болты анкерные",null,null,"т","0\n0",0,null,0,null,0,null,1.052,1.0209999999999999,1.0349999999999999,null,null,null,null,null,null,null,null,null,null,null,null,null,null,null,null,null,null,null,null,null,null,null,null,null,null,null,null,null,null,null,null,null,null,null,null,null,null,null,null,null,"Раздел 1. Рельсовый путь № 196",null,null,null,null,1.0249999999999999,1.02,1.03,1.2,0]
["42\n*","ТССЦ-509-2631","Капсула с клеевым составом Hilti HVU-TZ M20",null,null,"шт.",4,1207.99,null,1207.99,null,1207.99,null,1.052,1.0209999999999999,1.0349999999999999,null,null,null,null,null,null,null,null,null,null,null,null,null,null,null,null,null,null,null,null,null,null,null,null,null,null,null,null,null,null,null,null,null,null,null,null,null,null,null,null,null,"Раздел 1. Рельсовый путь № 197",null,null,null,null,1.0249999999999999,1.02,1.03,1.2,1735.3523918505571]
["43\n*","ТССЦ-509-4616","Шпилька анкерная Hilti: HIT-V-5,8 М16х300 (HAS) для использования с химическими анкерами HIT",null,null,"шт.",4,1372.68,null,1372.68,null,1372.68,null,1.052,1.0209999999999999,1.0349999999999999,null,null,null,null,null,null,null,null,null,null,null,null,null,null,null,null,null,null,null,null,null,null,null,null,null,null,null,null,null,null,null,null,null,null,null,null,null,null,null,null,null,"Раздел 1. Рельсовый путь № 198",null,null,null,null,1.0249999999999999,1.02,1.03,1.2,1971.9397687442968]
["Крепление стоек орграждения к роствергу",null,null,null,null,null,null,null,null,null,null,null,null,1.052,1.0209999999999999,1.0349999999999999,null,null,null,null,null,null,null,null,null,null,null,null,null,null,null,null,null,null,null,null,null,null,null,null,null,null,null,null,null,null,null,null,null,null,null,null,null,null,null,null,null,"Раздел 1. Рельсовый путь № 199",null,null,null,null,1.0249999999999999,1.02,1.03,1.2,0]
["44","ТЕР46-08-012-01","Установка анкеров в отверстия глубиной 100 мм с применением смесей серии MASTERFLOW, диаметр анкера: до 8 мм",null,null,"100 шт.",24,71624.98,null,null,null,71624.98,null,1.052,1.0209999999999999,1.0349999999999999,null,null,null,null,null,null,null,null,null,null,null,null,null,null,null,null,null,null,null,null,null,null,null,null,null,null,null,null,null,null,null,null,null,null,null,null,null,null,null,null,null,"Раздел 1. Рельсовый путь № 200",null,null,null,null,1.0249999999999999,1.02,1.03,1.2,0]
[null,null,null,null,"Итого c накладными и см. прибылью",null,null,180268.9,null,null,null,180268.9,null,1.052,1.0209999999999999,1.0349999999999999,null,null,null,null,null,null,null,null,null,null,null,null,null,null,null,null,null,null,null,null,null,null,null,null,null,null,null,null,null,null,null,null,null,null,null,null,null,null,null,null,null,"Раздел 1. Рельсовый путь № 203",null,null,null,null,1.0249999999999999,1.02,1.03,1.2,0]
["П,Н","101-9277","Материал серии MASTERFLOW",null,null,"кг","0\n0",0,null,0,null,0,null,1.052,1.0209999999999999,1.0349999999999999,null,null,null,null,null,null,null,null,null,null,null,null,null,null,null,null,null,null,null,null,null,null,null,null,null,null,null,null,null,null,null,null,null,null,null,null,null,null,null,null,null,"Раздел 1. Рельсовый путь № 204",null,null,null,null,1.0249999999999999,1.02,1.03,1.2,0]
["П,Н","101-9662","Болты анкерные",null,null,"т","0\n0",0,null,0,null,0,null,1.052,1.0209999999999999,1.0349999999999999,null,null,null,null,null,null,null,null,null,null,null,null,null,null,null,null,null,null,null,null,null,null,null,null,null,null,null,null,null,null,null,null,null,null,null,null,null,null,null,null,null,"Раздел 1. Рельсовый путь № 205",null,null,null,null,1.0249999999999999,1.02,1.03,1.2,0]
["45","ТЕР46-08-012-06","На каждые 10 мм изменения глубины отверстия добавлять (уменьшать) к расценке: 46-08-012-01",null,null,"100 шт.",24,61367,null,null,null,61367,null,1.052,1.0209999999999999,1.0349999999999999,null,null,null,null,null,null,null,null,null,null,null,null,null,null,null,null,null,null,null,null,null,null,null,null,null,null,null,null,null,null,null,null,null,null,null,null,null,null,null,null,null,"Раздел 1. Рельсовый путь № 206",null,null,null,null,1.0249999999999999,1.02,1.03,1.2,0]
[null,null,null,null,"Итого c накладными и см. прибылью",null,null,154245.72,null,null,null,154245.72,null,1.052,1.0209999999999999,1.0349999999999999,null,null,null,null,null,null,null,null,null,null,null,null,null,null,null,null,null,null,null,null,null,null,null,null,null,null,null,null,null,null,null,null,null,null,null,null,null,null,null,null,null,"Раздел 1. Рельсовый путь № 209",null,null,null,null,1.0249999999999999,1.02,1.03,1.2,0]
["П,Н","101-9277","Материал серии MASTERFLOW",null,null,"кг","0\n0",0,null,0,null,0,null,1.052,1.0209999999999999,1.0349999999999999,null,null,null,null,null,null,null,null,null,null,null,null,null,null,null,null,null,null,null,null,null,null,null,null,null,null,null,null,null,null,null,null,null,null,null,null,null,null,null,null,null,"Раздел 1. Рельсовый путь № 210",null,null,null,null,1.0249999999999999,1.02,1.03,1.2,0]
["П,Н","101-9662","Болты анкерные",null,null,"т","0\n0",0,null,0,null,0,null,1.052,1.0209999999999999,1.0349999999999999,null,null,null,null,null,null,null,null,null,null,null,null,null,null,null,null,null,null,null,null,null,null,null,null,null,null,null,null,null,null,null,null,null,null,null,null,null,null,null,null,null,"Раздел 1. Рельсовый путь № 211",null,null,null,null,1.0249999999999999,1.02,1.03,1.2,0]
["46\n*","ТССЦ-509-2631","Капсула с клеевым составом Hilti HVU-TZ M20",null,null,"шт.",24,7247.92,null,7247.92,null,7247.92,null,1.052,1.0209999999999999,1.0349999999999999,null,null,null,null,null,null,null,null,null,null,null,null,null,null,null,null,null,null,null,null,null,null,null,null,null,null,null,null,null,null,null,null,null,null,null,null,null,null,null,null,null,"Раздел 1. Рельсовый путь № 212",null,null,null,null,1.0249999999999999,1.02,1.03,1.2,10412.085619865638]
["47\n*","ТССЦ-509-4616","Шпилька анкерная Hilti: HIT-V-5,8 М16х300 (HAS) для использования с химическими анкерами HIT",null,null,"шт.",24,8236.09,null,8236.09,null,8236.09,null,1.052,1.0209999999999999,1.0349999999999999,null,null,null,null,null,null,null,null,null,null,null,null,null,null,null,null,null,null,null,null,null,null,null,null,null,null,null,null,null,null,null,null,null,null,null,null,null,null,null,null,null,"Раздел 1. Рельсовый путь № 213",null,null,null,null,1.0249999999999999,1.02,1.03,1.2,11831.652978084636]
["Крепление лебедки обслуживания к росвергу",null,null,null,null,null,null,null,null,null,null,null,null,1.052,1.0209999999999999,1.0349999999999999,null,null,null,null,null,null,null,null,null,null,null,null,null,null,null,null,null,null,null,null,null,null,null,null,null,null,null,null,null,null,null,null,null,null,null,null,null,null,null,null,null,"Раздел 1. Рельсовый путь № 214",null,null,null,null,1.0249999999999999,1.02,1.03,1.2,0]
["48","ТЕР46-08-012-01","Установка анкеров в отверстия глубиной 100 мм с применением смесей серии MASTERFLOW, диаметр анкера: до 8 мм",null,null,"100 шт.",0.04,119.37,null,null,null,119.37,null,1.052,1.0209999999999999,1.0349999999999999,null,null,null,null,null,null,null,null,null,null,null,null,null,null,null,null,null,null,null,null,null,null,null,null,null,null,null,null,null,null,null,null,null,null,null,null,null,null,null,null,null,"Раздел 1. Рельсовый путь № 215",null,null,null,null,1.0249999999999999,1.02,1.03,1.2,0]
[null,null,null,null,"Итого c накладными и см. прибылью",null,null,300.43,null,null,null,300.43,null,1.052,1.0209999999999999,1.0349999999999999,null,null,null,null,null,null,null,null,null,null,null,null,null,null,null,null,null,null,null,null,null,null,null,null,null,null,null,null,null,null,null,null,null,null,null,null,null,null,null,null,null,"Раздел 1. Рельсовый путь № 218",null,null,null,null,1.0249999999999999,1.02,1.03,1.2,0]
["П,Н","101-9277","Материал серии MASTERFLOW",null,"Итого c накладными и см. прибылью","кг","0\n0",0,null,0,null,0,null,1.052,1.0209999999999999,1.0349999999999999,null,null,null,null,null,null,null,null,null,null,null,null,null,null,null,null,null,null,null,null,null,null,null,null,null,null,null,null,null,null,null,null,null,null,null,null,null,null,null,null,null,"Раздел 1. Рельсовый путь № 219",null,null,null,null,1.0249999999999999,1.02,1.03,1.2,0]
["П,Н","101-9277","Материал серии MASTERFLOW",null,null,"кг","0\n0",0,null,0,null,0,null,1.052,1.0209999999999999,1.0349999999999999,null,null,null,null,null,null,null,null,null,null,null,null,null,null,null,null,null,null,null,null,null,null,null,null,null,null,null,null,null,null,null,null,null,null,null,null,null,null,null,null,null,"Раздел 1. Рельсовый путь № 225",null,null,null,null,1.0249999999999999,1.02,1.03,1.2,0]
["П,Н","101-9662","Болты анкерные",null,null,"т","0\n0",0,null,0,null,0,null,1.052,1.0209999999999999,1.0349999999999999,null,null,null,null,null,null,null,null,null,null,null,null,null,null,null,null,null,null,null,null,null,null,null,null,null,null,null,null,null,null,null,null,null,null,null,null,null,null,null,null,null,"Раздел 1. Рельсовый путь № 226",null,null,null,null,1.0249999999999999,1.02,1.03,1.2,0]
["50\n*","ТССЦ-509-2631","Капсула с клеевым составом Hilti HVU-TZ M20",null,null,"шт.",4,1207.99,null,1207.99,null,1207.99,null,1.052,1.0209999999999999,1.0349999999999999,null,null,null,null,null,null,null,null,null,null,null,null,null,null,null,null,null,null,null,null,null,null,null,null,null,null,null,null,null,null,null,null,null,null,null,null,null,null,null,null,null,"Раздел 1. Рельсовый путь № 227",null,null,null,null,1.0249999999999999,1.02,1.03,1.2,1735.3523918505571]
["51\n*","ТССЦ-509-4616","Шпилька анкерная Hilti: HIT-V-5,8 М16х300 (HAS) для использования с химическими анкерами HIT",null,null,"шт.",4,1372.68,null,1372.68,null,1372.68,null,1.052,1.0209999999999999,1.0349999999999999,null,null,null,null,null,null,null,null,null,null,null,null,null,null,null,null,null,null,null,null,null,null,null,null,null,null,null,null,null,null,null,null,null,null,null,null,null,null,null,null,null,"Раздел 1. Рельсовый путь № 228",null,null,null,null,1.0249999999999999,1.02,1.03,1.2,1971.9397687442968]
["Итого прямые затраты по смете в текущих ценах",null,null,null,null,null,null,39981057.060000002,null,32731731.5,null,39981057.060000002,null,1.052,1.0209999999999999,1.0349999999999999,null,null,null,null,null,null,null,null,null,null,null,null,null,null,null,null,null,null,null,null,null,null,null,null,null,null,null,null,null,null,null,null,null,null,null,null,null,null,null,null,null,"Раздел 1. Рельсовый путь № 229",null,null,null,null,1.0249999999999999,1.02,1.03,1.2,47021157.913505271]
["ВСЕГО по смете",null,null,null,null,null,null,26226796.25,null,null,null,26226796.25,null,1.052,1.0209999999999999,1.0349999999999999,null,null,null,null,null,null,null,null,null,null,null,null,null,null,null,null,null,null,null,null,null,null,null,null,null,null,null,null,null,null,null,null,null,null,null,null,null,null,null,null,null,"Раздел 1. Рельсовый путь № 232",null,null,null,null,1.0249999999999999,1.02,1.03,1.2,0]
["Материалы заказчика",null,null,null,null,null,null,32472792.550000001,null,null,null,32472792.550000001,null,1.052,1.0209999999999999,1.0349999999999999,null,null,null,null,null,null,null,null,null,null,null,null,null,null,null,null,null,null,null,null,null,null,null,null,null,null,null,null,null,null,null,null,null,null,null,null,null,null,null,null,null,"Раздел 1. Рельсовый путь № 233",null,null,null,null,1.0249999999999999,1.02,1.03,1.2,0]
[]
["Заказчик:  ____________________________ ООО \"ЕвроХим Терминал Усть-Луга\""]
["[должность, подпись (инициалы, фамилия)]"]
[]
["Составил:  ____________________________ "]
["[должность, подпись (инициалы, фамилия)]"]
[]
["Проверил:  ____________________________ "]
["[должность, подпись (инициалы, фамилия)]"]

{"sheet":"3.2_изм.смета - Базисно-индексн","index":1,"n_rows":198,"n_cols":67,"rows_kept":198,"cut":false,"hidden":false,"merged":[]}
[]
["Терминал по перевалке минеральных удобрений в морском торговом порту Усть-Луга. Береговые объекты терминала",null,null,null,null,null,null,null,null,null,null,null,null,null,null,null,"Терминал по перевалке минеральных удобрений в морском торговом порту Усть-Луга. Береговые объекты терминала","","","","","","","","","","","","","",""]
["(наименование стройки)"]
[]
["ЛОКАЛЬНАЯ СМЕТА № 1632-2021-2.1.3-КМ_07.04.042-П-01-02"]
["(локальная смета)"]
["на Конструкции металлические, 07.04.042 Конвейерная галерея №3 (код SAP 01.02.011) код ГП 2.1.3",null,null,null,null,null,null,null,null,null,null,null,null,null,null,null,null,null,null,null,null,null,null,null,null,null,null,null,null,null,null,"на Конструкции металлические, 07.04.042 Конвейерная галерея №3 (код SAP 01.02.011) код ГП 2.1.3","","","","","","","","","","","","","",""]
["(наименование работ и затрат, наименование объекта)"]
[null,"Основание:","1632-2021-2.1.3-КМ_0_0_RU_IFC"]
[]
["№ п/п","Обоснование","Наименование работ и затрат",null,null,"Ед. изм.","Кол-во","Всего","Цена за ед.измерения, руб., с НДС","Стоимость материалов,руб., с НДС","Цена за ед.измерения, руб., с НДС","Стоимость работ,руб., с НДС",null,null,null,null,null,null,null,null,null,null,null,null,null,null,null,null,null,null,null,null,null,null,null,null,null,null,null,null,null,null,null,null,null,null,null,null,null,null,null,null,null,null,null,null,null,null,null,null,null,null,null,null,null,null,"Стоимость материалов,руб., с НДС"]
[1,2,3,null,null,4,5,10,null,13,null,10,null,null,null,null,null,null,null,null,null,null,null,null,null,null,null,null,null,null,null,null,null,null,null,null,null,null,null,null,null,null,null,null,null,null,null,null,null,null,null,null,null,null,null,null,null,null,null,null,null,null,null,null,null,null,13]
["Раздел 1. Новый Раздел",null,null,null,null,null,null,null,null,null,null,null,null,"ВЗиС","ЗУ","Вахта",null,null,null,null,null,null,null,null,null,null,null,null,null,null,null,null,null,null,null,null,null,null,null,null,null,null,null,null,null,null,null,null,null,null,null,null,null,null,null,null,"Раздел 1. Новый Раздел",null,null,null,null,null,"Перевоз.","Перебаз.","Непр.","НДС"]
["Раздел 1. Рельсовый путь № 1",null,null,null,null,null,null,null,null,null,null,null,null,1.052,1.0209999999999999,1.0349999999999999,null,null,null,null,null,null,null,null,null,null,null,null,null,null,null,null,null,null,null,null,null,null,null,null,null,null,null,null,null,null,null,null,null,null,null,null,null,null,null,null,null,"Раздел 1. Рельсовый путь № 1",null,null,null,null,1.0249999999999999,1.02,1.03,1.2]
["1","ТЕР09-03-005-02","Монтаж подкрановых путей: по металлическим  подкрановым балкам для рельсов типа КР\n//вес 83,09 кг./м",null,null,"100 м рельса в одну нитку",7.6948999999999996,2706408.07,{"$f":"J15/G15","v":12986.632704778489},99930.84,{"$f":"L15/G15","v":351714.52130631974},2706408.07,null,1.052,1.0209999999999999,1.0349999999999999,null,null,null,null,null,null,null,null,null,null,null,null,null,null,null,null,null,null,null,null,null,null,null,null,null,null,null,null,null,null,null,null,null,null,null,null,null,null,null,null,null,"Раздел 1. Рельсовый путь № 2",null,null,null,null,1.0249999999999999,1.02,1.03,1.2,{"$f":"J15*N15*O15*P15*BK15*BL15*BM15*BN15","v":143556.83591224707}]
[null,null,null,null,"Итого c накладными и см. прибылью",null,null,5741494.6699999999,null,null,null,5741494.6699999999,null,1.052,1.0209999999999999,1.0349999999999999,null,null,null,null,null,null,null,null,null,null,null,null,null,null,null,null,null,null,null,null,null,null,null,null,null,null,null,null,null,null,null,null,null,null,null,null,null,null,null,null,null,"Раздел 1. Рельсовый путь № 5",null,null,null,null,1.0249999999999999,1.02,1.03,1.2,{"$f":"J16*N16*O16*P16*BK16*BL16*BM16*BN16","v":0}]
[null,"101-0309","Канаты пеньковые пропитанные",null,null,"т","0,0009\n0,0069",229.91,null,229.91,null,229.91,null,1.052,1.0209999999999999,1.0349999999999999,null,null,null,null,null,null,null,null,null,null,null,null,null,null,null,null,null,null,null,null,null,null,null,null,null,null,null,null,null,null,null,null,null,null,null,null,null,null,null,null,null,"Раздел 1. Рельсовый путь № 6",null,null,null,null,1.0249999999999999,1.02,1.03,1.2,330.27994305446362]
[null,"101-0324","Кислород технический: газообразный",null,null,"м3","16,58\n127,6",1156.06,null,1156.06,null,1156.06,null,1.052,1.0209999999999999,1.0349999999999999,null,null,null,null,null,null,null,null,null,null,null,null,null,null,null,null,null,null,null,null,null,null,null,null,null,null,null,null,null,null,null,null,null,null,null,null,null,null,null,null,null,"Раздел 1. Рельсовый путь № 7",null,null,null,null,1.0249999999999999,1.02,1.03,1.2,1660.7517331457673]
[null,"101-0797","Проволока горячекатаная в мотках, диаметром 6,3-6,5 мм",null,null,"т","0,0002\n0,0015",4.45,null,4.45,null,4.45,null,1.052,1.0209999999999999,1.0349999999999999,null,null,null,null,null,null,null,null,null,null,null,null,null,null,null,null,null,null,null,null,null,null,null,null,null,null,null,null,null,null,null,null,null,null,null,null,null,null,null,null,null,"Раздел 1. Рельсовый путь № 8",null,null,null,null,1.0249999999999999,1.02,1.03,1.2,6.3927003896845012]
[null,"101-1515","Электроды диаметром: 4 мм Э46",null,null,"т","0,1\n0,7695",7942.63,null,7942.63,null,7942.63,null,1.052,1.0209999999999999,1.0349999999999999,null,null,null,null,null,null,null,null,null,null,null,null,null,null,null,null,null,null,null,null,null,null,null,null,null,null,null,null,null,null,null,null,null,null,null,null,null,null,null,null,null,"Раздел 1. Рельсовый путь № 9",null,null,null,null,1.0249999999999999,1.02,1.03,1.2,11410.079527217935]
[null,"101-1805","Гвозди строительные",null,null,"т","0,0008\n0,0062",66.17,null,66.17,null,66.17,null,1.052,1.0209999999999999,1.0349999999999999,null,null,null,null,null,null,null,null,null,null,null,null,null,null,null,null,null,null,null,null,null,null,null,null,null,null,null,null,null,null,null,null,null,null,null,null,null,null,null,null,null,"Раздел 1. Рельсовый путь № 10",null,null,null,null,1.0249999999999999,1.02,1.03,1.2,95.05729995178055]
[null,"101-2278","Пропан-бутан, смесь техническая",null,null,"кг","5\n38,47",203.89,null,203.89,null,203.89,null,1.052,1.0209999999999999,1.0349999999999999,null,null,null,null,null,null,null,null,null,null,null,null,null,null,null,null,null,null,null,null,null,null,null,null,null,null,null,null,null,null,null,null,null,null,null,null,null,null,null,null,null,"Раздел 1. Рельсовый путь № 11",null,null,null,null,1.0249999999999999,1.02,1.03,1.2,292.90060279837587]
[null,"101-2467","Растворитель марки: Р-4",null,null,"т","0,0005\n0,0038",58.95,null,58.95,null,58.95,null,1.052,1.0209999999999999,1.0349999999999999,null,null,null,null,null,null,null,null,null,null,null,null,null,null,null,null,null,null,null,null,null,null,null,null,null,null,null,null,null,null,null,null,null,null,null,null,null,null,null,null,null,"Раздел 1. Рельсовый путь № 12",null,null,null,null,1.0249999999999999,1.02,1.03,1.2,84.685323139753095]
[null,"102-0023","Бруски обрезные хвойных пород длиной: 4-6,5 м, шириной 75-150 мм, толщиной 40-75 мм, I сорта",null,null,"м3","0,08\n0,6156",1596.37,null,1596.37,null,1596.37,null,1.052,1.0209999999999999,1.0349999999999999,null,null,null,null,null,null,null,null,null,null,null,null,null,null,null,null,null,null,null,null,null,null,null,null,null,null,null,null,null,null,null,null,null,null,null,null,null,null,null,null,null,"Раздел 1. Рельсовый путь № 13",null,null,null,null,1.0249999999999999,1.02,1.03,1.2,2293.2842968720552]
[null,"113-0021","Грунтовка: ГФ-021 красно-коричневая",null,null,"т","0,0026\n0,02",367.07,null,367.07,null,367.07,null,1.052,1.0209999999999999,1.0349999999999999,null,null,null,null,null,null,null,null,null,null,null,null,null,null,null,null,null,null,null,null,null,null,null,null,null,null,null,null,null,null,null,null,null,null,null,null,null,null,null,null,null,"Раздел 1. Рельсовый путь № 14",null,null,null,null,1.0249999999999999,1.02,1.03,1.2,527.31877124527853]
["П,Н","201-0631","Детали крепления рельсов",null,null,"т","0\n0",0,null,0,null,0,null,1.052,1.0209999999999999,1.0349999999999999,null,null,null,null,null,null,null,null,null,null,null,null,null,null,null,null,null,null,null,null,null,null,null,null,null,null,null,null,null,null,null,null,null,null,null,null,null,null,null,null,null,"Раздел 1. Рельсовый путь № 15",null,null,null,null,1.0249999999999999,1.02,1.03,1.2,0]
["П,Н","201-9002","Конструкции стальные",null,null,"т","0\n0",0,null,0,null,0,null,1.052,1.0209999999999999,1.0349999999999999,null,null,null,null,null,null,null,null,null,null,null,null,null,null,null,null,null,null,null,null,null,null,null,null,null,null,null,null,null,null,null,null,null,null,null,null,null,null,null,null,null,"Раздел 1. Рельсовый путь № 16",null,null,null,null,1.0249999999999999,1.02,1.03,1.2,0]
[null,"508-0097","Канат двойной свивки типа ТК, конструкции 6х19(1+6+12)+1 о.с., оцинкованный из проволок марки В, маркировочная группа: 1770 н/мм2, диаметром 5,5 мм",null,null,"10 м","0,09\n0,6925",47.57,null,47.57,null,47.57,null,1.052,1.0209999999999999,1.0349999999999999,null,null,null,null,null,null,null,null,null,null,null,null,null,null,null,null,null,null,null,null,null,null,null,null,null,null,null,null,null,null,null,null,null,null,null,null,null,null,null,null,null,"Раздел 1. Рельсовый путь № 17",null,null,null,null,1.0249999999999999,1.02,1.03,1.2,68.337248884784657]
["2\n*","ТССЦ-202-0017","Пути подкрановые, марка стали: С 255, крепления и упоры//Рельсовые комплекты",null,null,"т",29.783619999999999,7256272.9299999997,null,7256272.9299999997,null,7256272.9299999997,null,1.052,1.0209999999999999,1.0349999999999999,null,null,null,null,null,null,null,null,null,null,null,null,null,null,null,null,null,null,null,null,null,null,null,null,null,null,null,null,null,null,null,null,null,null,null,null,null,null,null,null,null,"Раздел 1. Рельсовый путь № 18",null,null,null,null,1.0249999999999999,1.02,1.03,1.2,10424085.120734401]
["3\n*","ТССЦ-202-0016","Пути подкрановые, марка стали: С 255, рельсы железнодорожные",null,null,"т",31.968461999999999,3280180.03,null,3280180.03,null,3280180.03,null,1.052,1.0209999999999999,1.0349999999999999,null,null,null,null,null,null,null,null,null,null,null,null,null,null,null,null,null,null,null,null,null,null,null,null,null,null,null,null,null,null,null,null,null,null,null,null,null,null,null,null,null,"Раздел 1. Рельсовый путь № 19",null,null,null,null,1.0249999999999999,1.02,1.03,1.2,4712181.6080935542]
["Раздел 2. Рельсовый путь № 2",null,null,null,null,null,null,null,null,null,null,null,null,1.052,1.0209999999999999,1.0349999999999999,null,null,null,null,null,null,null,null,null,null,null,null,null,null,null,null,null,null,null,null,null,null,null,null,null,null,null,null,null,null,null,null,null,null,null,null,null,null,null,null,null,"Раздел 1. Рельсовый путь № 20",null,null,null,null,1.0249999999999999,1.02,1.03,1.2,0]
["Раздел 2. Рельсовый путь № 2",null,null,null,null,null,null,null,null,null,null,null,null,1.052,1.0209999999999999,1.0349999999999999,null,null,null,null,null,null,null,null,null,null,null,null,null,null,null,null,null,null,null,null,null,null,null,null,null,null,null,null,null,null,null,null,null,null,null,null,null,null,null,null,null,"Раздел 1. Рельсовый путь № 21",null,null,null,null,1.0249999999999999,1.02,1.03,1.2,0]
["4","ТЕР09-03-005-02","Монтаж подкрановых путей: по металлическим  подкрановым балкам для рельсов типа КР\n//вес 83,09 кг./м",null,null,"100 м рельса в одну нитку",8.0701999999999998,2838406.52,null,104804.72,null,2838406.52,null,1.052,1.0209999999999999,1.0349999999999999,null,null,null,null,null,null,null,null,null,null,null,null,null,null,null,null,null,null,null,null,null,null,null,null,null,null,null,null,null,null,null,null,null,null,null,null,null,null,null,null,null,"Раздел 1. Рельсовый путь № 22",null,null,null,null,1.0249999999999999,1.02,1.03,1.2,150558.46615388204]
[null,null,null,null,"Итого c накладными и см. прибылью",null,null,6021522.0899999999,null,null,null,6021522.0899999999,null,1.052,1.0209999999999999,1.0349999999999999,null,null,null,null,null,null,null,null,null,null,null,null,null,null,null,null,null,null,null,null,null,null,null,null,null,null,null,null,null,null,null,null,null,null,null,null,null,null,null,null,null,"Раздел 1. Рельсовый путь № 25",null,null,null,null,1.0249999999999999,1.02,1.03,1.2,0]
[null,"101-0309","Канаты пеньковые пропитанные",null,null,"т","0,0009\n0,0073",243.24,null,243.24,null,243.24,null,1.052,1.0209999999999999,1.0349999999999999,null,null,null,null,null,null,null,null,null,null,null,null,null,null,null,null,null,null,null,null,null,null,null,null,null,null,null,null,null,null,null,null,null,null,null,null,null,null,null,null,null,"Раздел 1. Рельсовый путь № 26",null,null,null,null,1.0249999999999999,1.02,1.03,1.2,349.42931298581078]
[null,"101-0324","Кислород технический: газообразный",null,null,"м3","16,58\n133,8",1212.23,null,1212.23,null,1212.23,null,1.052,1.0209999999999999,1.0349999999999999,null,null,null,null,null,null,null,null,null,null,null,null,null,null,null,null,null,null,null,null,null,null,null,null,null,null,null,null,null,null,null,null,null,null,null,null,null,null,null,null,null,"Раздел 1. Рельсовый путь № 27",null,null,null,null,1.0249999999999999,1.02,1.03,1.2,1741.4434142443242]
[null,"101-0797","Проволока горячекатаная в мотках, диаметром 6,3-6,5 мм",null,null,"т","0,0002\n0,0016",4.74,null,4.74,null,4.74,null,1.052,1.0209999999999999,1.0349999999999999,null,null,null,null,null,null,null,null,null,null,null,null,null,null,null,null,null,null,null,null,null,null,null,null,null,null,null,null,null,null,null,null,null,null,null,null,null,null,null,null,null,"Раздел 1. Рельсовый путь № 28",null,null,null,null,1.0249999999999999,1.02,1.03,1.2,6.8093033364279849]
[null,"101-1515","Электроды диаметром: 4 мм Э46",null,null,"т","0,1\n0,807",8329.69,null,8329.69,null,8329.69,null,1.052,1.0209999999999999,1.0349999999999999,null,null,null,null,null,null,null,null,null,null,null,null,null,null,null,null,null,null,null,null,null,null,null,null,null,null,null,null,null,null,null,null,null,null,null,null,null,null,null,null,null,"Раздел 1. Рельсовый путь № 29",null,null,null,null,1.0249999999999999,1.02,1.03,1.2,11966.115170550805]
[null,"101-1805","Гвозди строительные",null,null,"т","0,0008\n0,0065",69.37,null,69.37,null,69.37,null,1.052,1.0209999999999999,1.0349999999999999,null,null,null,null,null,null,null,null,null,null,null,null,null,null,null,null,null,null,null,null,null,null,null,null,null,null,null,null,null,null,null,null,null,null,null,null,null,null,null,null,null,"Раздел 1. Рельсовый путь № 30",null,null,null,null,1.0249999999999999,1.02,1.03,1.2,99.654297984812118]
[null,"101-2278","Пропан-бутан, смесь техническая",null,null,"кг","5\n40,35",213.86,null,213.86,null,213.86,null,1.052,1.0209999999999999,1.0349999999999999,null,null,null,null,null,null,null,null,null,null,null,null,null,null,null,null,null,null,null,null,null,null,null,null,null,null,null,null,null,null,null,null,null,null,null,null,null,null,null,null,null,"Раздел 1. Рельсовый путь № 31",null,null,null,null,1.0249999999999999,1.02,1.03,1.2,307.22312479503984]
[null,"101-2467","Растворитель марки: Р-4",null,null,"т","0,0005\n0,004",62.05,null,62.05,null,62.05,null,1.052,1.0209999999999999,1.0349999999999999,null,null,null,null,null,null,null,null,null,null,null,null,null,null,null,null,null,null,null,null,null,null,null,null,null,null,null,null,null,null,null,null,null,null,null,null,null,null,null,null,null,"Раздел 1. Рельсовый путь № 32",null,null,null,null,1.0249999999999999,1.02,1.03,1.2,89.138664984252429]
[null,"102-0023","Бруски обрезные хвойных пород длиной: 4-6,5 м, шириной 75-150 мм, толщиной 40-75 мм, I сорта",null,null,"м3","0,08\n0,6456",1674.17,null,1674.17,null,1674.17,null,1.052,1.0209999999999999,1.0349999999999999,null,null,null,null,null,null,null,null,null,null,null,null,null,null,null,null,null,null,null,null,null,null,null,null,null,null,null,null,null,null,null,null,null,null,null,null,null,null,null,null,null,"Раздел 1. Рельсовый путь № 33",null,null,null,null,1.0249999999999999,1.02,1.03,1.2,2405.0488115501348]
[null,"113-0021","Грунтовка: ГФ-021 красно-коричневая",null,null,"т","0,0026\n0,021",385.42,null,385.42,null,385.42,null,1.052,1.0209999999999999,1.0349999999999999,null,null,null,null,null,null,null,null,null,null,null,null,null,null,null,null,null,null,null,null,null,null,null,null,null,null,null,null,null,null,null,null,null,null,null,null,null,null,null,null,null,"Раздел 1. Рельсовый путь № 34",null,null,null,null,1.0249999999999999,1.02,1.03,1.2,553.67968184094389]
["П,Н","201-0631","Детали крепления рельсов",null,null,"т","0\n0",0,null,0,null,0,null,1.052,1.0209999999999999,1.0349999999999999,null,null,null,null,null,null,null,null,null,null,null,null,null,null,null,null,null,null,null,null,null,null,null,null,null,null,null,null,null,null,null,null,null,null,null,null,null,null,null,null,null,"Раздел 1. Рельсовый путь № 35",null,null,null,null,1.0249999999999999,1.02,1.03,1.2,0]
["П,Н","201-9002","Конструкции стальные",null,null,"т","0\n0",0,null,0,null,0,null,1.052,1.0209999999999999,1.0349999999999999,null,null,null,null,null,null,null,null,null,null,null,null,null,null,null,null,null,null,null,null,null,null,null,null,null,null,null,null,null,null,null,null,null,null,null,null,null,null,null,null,null,"Раздел 1. Рельсовый путь № 36",null,null,null,null,1.0249999999999999,1.02,1.03,1.2,0]
[null,"508-0097","Канат двойной свивки типа ТК, конструкции 6х19(1+6+12)+1 о.с., оцинкованный из проволок марки В, маркировочная группа: 1770 н/мм2, диаметром 5,5 мм",null,null,"10 м","0,09\n0,7263",49.9,null,49.9,null,49.9,null,1.052,1.0209999999999999,1.0349999999999999,null,null,null,null,null,null,null,null,null,null,null,null,null,null,null,null,null,null,null,null,null,null,null,null,null,null,null,null,null,null,null,null,null,null,null,null,null,null,null,null,null,"Раздел 1. Рельсовый путь № 37",null,null,null,null,1.0249999999999999,1.02,1.03,1.2,71.684438077585753]
["5\n*","ТССЦ-202-0017","Пути подкрановые, марка стали: С 255, крепления и упоры//Рельсовые комплекты",null,null,"т",31.731100000000001,7730743.3399999999,null,7730743.3399999999,null,7730743.3399999999,null,1.052,1.0209999999999999,1.0349999999999999,null,null,null,null,null,null,null,null,null,null,null,null,null,null,null,null,null,null,null,null,null,null,null,null,null,null,null,null,null,null,null,null,null,null,null,null,null,null,null,null,null,"Раздел 1. Рельсовый путь № 38",null,null,null,null,1.0249999999999999,1.02,1.03,1.2,11105691.227453675]
["6\n*","ТССЦ-202-0016","Пути подкрановые, марка стали: С 255, рельсы железнодорожные",null,null,"т",45.786279999999998,4697981.4400000004,null,4697981.4400000004,null,4697981.4400000004,null,1.052,1.0209999999999999,1.0349999999999999,null,null,null,null,null,null,null,null,null,null,null,null,null,null,null,null,null,null,null,null,null,null,null,null,null,null,null,null,null,null,null,null,null,null,null,null,null,null,null,null,null,"Раздел 1. Рельсовый путь № 39",null,null,null,null,1.0249999999999999,1.02,1.03,1.2,6748941.0746558541]
["Раздел 3. Рельсовый путь № 3",null,null,null,null,null,null,null,null,null,null,null,null,1.052,1.0209999999999999,1.0349999999999999,null,null,null,null,null,null,null,null,null,null,null,null,null,null,null,null,null,null,null,null,null,null,null,null,null,null,null,null,null,null,null,null,null,null,null,null,null,null,null,null,null,"Раздел 1. Рельсовый путь № 40",null,null,null,null,1.0249999999999999,1.02,1.03,1.2,0]
["Раздел 3. Рельсовый путь № 3",null,null,null,null,null,null,null,null,null,null,null,null,1.052,1.0209999999999999,1.0349999999999999,null,null,null,null,null,null,null,null,null,null,null,null,null,null,null,null,null,null,null,null,null,null,null,null,null,null,null,null,null,null,null,null,null,null,null,null,null,null,null,null,null,"Раздел 1. Рельсовый путь № 41",null,null,null,null,1.0249999999999999,1.02,1.03,1.2,0]
["7","ТЕР09-03-005-02","Монтаж подкрановых путей: по металлическим  подкрановым балкам для рельсов типа КР\n//вес 83,09 кг./м",null,null,"100 м рельса в одну нитку",7.7721999999999998,2733595.6,null,100934.71,null,2733595.6,null,1.052,1.0209999999999999,1.0349999999999999,null,null,null,null,null,null,null,null,null,null,null,null,null,null,null,null,null,null,null,null,null,null,null,null,null,null,null,null,null,null,null,null,null,null,null,null,null,null,null,null,null,"Раздел 1. Рельсовый путь № 42",null,null,null,null,1.0249999999999999,1.02,1.03,1.2,144998.95729206564]
[null,null,null,null,"Итого c накладными и см. прибылью",null,null,5799171.5300000003,null,null,null,5799171.5300000003,null,1.052,1.0209999999999999,1.0349999999999999,null,null,null,null,null,null,null,null,null,null,null,null,null,null,null,null,null,null,null,null,null,null,null,null,null,null,null,null,null,null,null,null,null,null,null,null,null,null,null,null,null,"Раздел 1. Рельсовый путь № 45",null,null,null,null,1.0249999999999999,1.02,1.03,1.2,0]
[null,"101-0309","Канаты пеньковые пропитанные",null,null,"т","0,0009\n0,007",233.24,null,233.24,null,233.24,null,1.052,1.0209999999999999,1.0349999999999999,null,null,null,null,null,null,null,null,null,null,null,null,null,null,null,null,null,null,null,null,null,null,null,null,null,null,null,null,null,null,null,null,null,null,null,null,null,null,null,null,null,"Раздел 1. Рельсовый путь № 46",null,null,null,null,1.0249999999999999,1.02,1.03,1.2,335.06369413258716]
[null,"101-0324","Кислород технический: газообразный",null,null,"м3","16,58\n128,9",1167.83,null,1167.83,null,1167.83,null,1.052,1.0209999999999999,1.0349999999999999,null,null,null,null,null,null,null,null,null,null,null,null,null,null,null,null,null,null,null,null,null,null,null,null,null,null,null,null,null,null,null,null,null,null,null,null,null,null,null,null,null,"Раздел 1. Рельсовый путь № 47",null,null,null,null,1.0249999999999999,1.02,1.03,1.2,1677.6600665360113]
[null,"101-0797","Проволока горячекатаная в мотках, диаметром 6,3-6,5 мм",null,null,"т","0,0002\n0,0016",4.74,null,4.74,null,4.74,null,1.052,1.0209999999999999,1.0349999999999999,null,null,null,null,null,null,null,null,null,null,null,null,null,null,null,null,null,null,null,null,null,null,null,null,null,null,null,null,null,null,null,null,null,null,null,null,null,null,null,null,null,"Раздел 1. Рельсовый путь № 48",null,null,null,null,1.0249999999999999,1.02,1.03,1.2,6.8093033364279849]
[null,"101-1515","Электроды диаметром: 4 мм Э46",null,null,"т","0,1\n0,7772",8022.1,null,8022.1,null,8022.1,null,1.052,1.0209999999999999,1.0349999999999999,null,null,null,null,null,null,null,null,null,null,null,null,null,null,null,null,null,null,null,null,null,null,null,null,null,null,null,null,null,null,null,null,null,null,null,null,null,null,null,null,null,"Раздел 1. Рельсовый путь № 49",null,null,null,null,1.0249999999999999,1.02,1.03,1.2,11524.243100244499]
[null,"101-1805","Гвозди строительные",null,null,"т","0,0008\n0,0062",66.17,null,66.17,null,66.17,null,1.052,1.0209999999999999,1.0349999999999999,null,null,null,null,null,null,null,null,null,null,null,null,null,null,null,null,null,null,null,null,null,null,null,null,null,null,null,null,null,null,null,null,null,null,null,null,null,null,null,null,null,"Раздел 1. Рельсовый путь № 50",null,null,null,null,1.0249999999999999,1.02,1.03,1.2,95.05729995178055]
[null,"101-2278","Пропан-бутан, смесь техническая",null,null,"кг","5\n38,86",205.96,null,205.96,null,205.96,null,1.052,1.0209999999999999,1.0349999999999999,null,null,null,null,null,null,null,null,null,null,null,null,null,null,null,null,null,null,null,null,null,null,null,null,null,null,null,null,null,null,null,null,null,null,null,null,null,null,null,null,null,"Раздел 1. Рельсовый путь № 51",null,null,null,null,1.0249999999999999,1.02,1.03,1.2,295.87428590099324]
[null,"101-2467","Растворитель марки: Р-4",null,null,"т","0,0005\n0,0039",60.5,null,60.5,null,60.5,null,1.052,1.0209999999999999,1.0349999999999999,null,null,null,null,null,null,null,null,null,null,null,null,null,null,null,null,null,null,null,null,null,null,null,null,null,null,null,null,null,null,null,null,null,null,null,null,null,null,null,null,null,"Раздел 1. Рельсовый путь № 52",null,null,null,null,1.0249999999999999,1.02,1.03,1.2,86.911994062002748]
[null,"102-0023","Бруски обрезные хвойных пород длиной: 4-6,5 м, шириной 75-150 мм, толщиной 40-75 мм, I сорта",null,null,"м3","0,08\n0,6218",1612.45,null,1612.45,null,1612.45,null,1.052,1.0209999999999999,1.0349999999999999,null,null,null,null,null,null,null,null,null,null,null,null,null,null,null,null,null,null,null,null,null,null,null,null,null,null,null,null,null,null,null,null,null,null,null,null,null,null,null,null,null,"Раздел 1. Рельсовый путь № 53",null,null,null,null,1.0249999999999999,1.02,1.03,1.2,2316.3842119880392]
[null,"113-0021","Грунтовка: ГФ-021 красно-коричневая",null,null,"т","0,0026\n0,0202",370.74,null,370.74,null,370.74,null,1.052,1.0209999999999999,1.0349999999999999,null,null,null,null,null,null,null,null,null,null,null,null,null,null,null,null,null,null,null,null,null,null,null,null,null,null,null,null,null,null,null,null,null,null,null,null,null,null,null,null,null,"Раздел 1. Рельсовый путь № 54",null,null,null,null,1.0249999999999999,1.02,1.03,1.2,532.59095336441169]
["П,Н","201-0631","Детали крепления рельсов",null,null,"т","0\n0",0,null,0,null,0,null,1.052,1.0209999999999999,1.0349999999999999,null,null,null,null,null,null,null,null,null,null,null,null,null,null,null,null,null,null,null,null,null,null,null,null,null,null,null,null,null,null,null,null,null,null,null,null,null,null,null,null,null,"Раздел 1. Рельсовый путь № 55",null,null,null,null,1.0249999999999999,1.02,1.03,1.2,0]
["П,Н","201-9002","Конструкции стальные",null,null,"т","0\n0",0,null,0,null,0,null,1.052,1.0209999999999999,1.0349999999999999,null,null,null,null,null,null,null,null,null,null,null,null,null,null,null,null,null,null,null,null,null,null,null,null,null,null,null,null,null,null,null,null,null,null,null,null,null,null,null,null,null,"Раздел 1. Рельсовый путь № 56",null,null,null,null,1.0249999999999999,1.02,1.03,1.2,0]
[null,"508-0097","Канат двойной свивки типа ТК, конструкции 6х19(1+6+12)+1 о.с., оцинкованный из проволок марки В, маркировочная группа: 1770 н/мм2, диаметром 5,5 мм",null,null,"10 м","0,09\n0,6995",48.06,null,48.06,null,48.06,null,1.052,1.0209999999999999,1.0349999999999999,null,null,null,null,null,null,null,null,null,null,null,null,null,null,null,null,null,null,null,null,null,null,null,null,null,null,null,null,null,null,null,null,null,null,null,null,null,null,null,null,null,"Раздел 1. Рельсовый путь № 57",null,null,null,null,1.0249999999999999,1.02,1.03,1.2,69.041164208592605]
["8\n*","ТССЦ-202-0017","Пути подкрановые, марка стали: С 255, крепления и упоры//Рельсовые комплекты",null,null,"т",14.42985,3515587.76,null,3515587.76,null,3515587.76,null,1.052,1.0209999999999999,1.0349999999999999,null,null,null,null,null,null,null,null,null,null,null,null,null,null,null,null,null,null,null,null,null,null,null,null,null,null,null,null,null,null,null,null,null,null,null,null,null,null,null,null,null,"Раздел 1. Рельсовый путь № 58",null,null,null,null,1.0249999999999999,1.02,1.03,1.2,5050359.3805218125]
["9\n*","ТССЦ-202-0016","Пути подкрановые, марка стали: С 255, рельсы железнодорожные",null,null,"т",4.8809420000000001,500817.6,null,500817.6,null,500817.6,null,1.052,1.0209999999999999,1.0349999999999999,null,null,null,null,null,null,null,null,null,null,null,null,null,null,null,null,null,null,null,null,null,null,null,null,null,null,null,null,null,null,null,null,null,null,null,null,null,null,null,null,null,"Раздел 1. Рельсовый путь № 59",null,null,null,null,1.0249999999999999,1.02,1.03,1.2,719455.47565861943]
["10","ТЕР46-08-012-01","Установка анкеров в отверстия глубиной 100 мм с применением смесей серии MASTERFLOW, диаметр анкера: до 8 мм",null,null,"100 шт.",15.46,46138.42,null,null,null,46138.42,null,1.052,1.0209999999999999,1.0349999999999999,null,null,null,null,null,null,null,null,null,null,null,null,null,null,null,null,null,null,null,null,null,null,null,null,null,null,null,null,null,null,null,null,null,null,null,null,null,null,null,null,null,"Раздел 1. Рельсовый путь № 60",null,null,null,null,1.0249999999999999,1.02,1.03,1.2,0]
[null,null,null,null,"Итого c накладными и см. прибылью",null,null,116123.21,null,null,null,116123.21,null,1.052,1.0209999999999999,1.0349999999999999,null,null,null,null,null,null,null,null,null,null,null,null,null,null,null,null,null,null,null,null,null,null,null,null,null,null,null,null,null,null,null,null,null,null,null,null,null,null,null,null,null,"Раздел 1. Рельсовый путь № 63",null,null,null,null,1.0249999999999999,1.02,1.03,1.2,0]
["П,Н","101-9277","Материал серии MASTERFLOW",null,null,"кг","0\n0",0,null,0,null,0,null,1.052,1.0209999999999999,1.0349999999999999,null,null,null,null,null,null,null,null,null,null,null,null,null,null,null,null,null,null,null,null,null,null,null,null,null,null,null,null,null,null,null,null,null,null,null,null,null,null,null,null,null,"Раздел 1. Рельсовый путь № 64",null,null,null,null,1.0249999999999999,1.02,1.03,1.2,0]
["П,Н","101-9662","Болты анкерные",null,null,"т","0\n0",0,null,0,null,0,null,1.052,1.0209999999999999,1.0349999999999999,null,null,null,null,null,null,null,null,null,null,null,null,null,null,null,null,null,null,null,null,null,null,null,null,null,null,null,null,null,null,null,null,null,null,null,null,null,null,null,null,null,"Раздел 1. Рельсовый путь № 65",null,null,null,null,1.0249999999999999,1.02,1.03,1.2,0]
["11","ТЕР46-08-012-06","На каждые 10 мм изменения глубины отверстия добавлять (уменьшать) к расценке: 46-08-012-01",null,null,"100 шт.",15.46,118591.73,null,null,null,118591.73,null,1.052,1.0209999999999999,1.0349999999999999,null,null,null,null,null,null,null,null,null,null,null,null,null,null,null,null,null,null,null,null,null,null,null,null,null,null,null,null,null,null,null,null,null,null,null,null,null,null,null,null,null,"Раздел 1. Рельсовый путь № 66",null,null,null,null,1.0249999999999999,1.02,1.03,1.2,0]
[null,null,null,null,"Итого c накладными и см. прибылью",null,null,298079.84999999998,null,null,null,298079.84999999998,null,1.052,1.0209999999999999,1.0349999999999999,null,null,null,null,null,null,null,null,null,null,null,null,null,null,null,null,null,null,null,null,null,null,null,null,null,null,null,null,null,null,null,null,null,null,null,null,null,null,null,null,null,"Раздел 1. Рельсовый путь № 69",null,null,null,null,1.0249999999999999,1.02,1.03,1.2,{"$f":"J72*N72*O72*P72*BK72*BL72*BM72*BN72","v":0}]
["П,Н","101-9277","Материал серии MASTERFLOW",null,null,"кг","0\n0",0,null,0,null,0,null,1.052,1.0209999999999999,1.0349999999999999,null,null,null,null,null,null,null,null,null,null,null,null,null,null,null,null,null,null,null,null,null,null,null,null,null,null,null,null,null,null,null,null,null,null,null,null,null,null,null,null,null,"Раздел 1. Рельсовый путь № 70",null,null,null,null,1.0249999999999999,1.02,1.03,1.2,0]
["П,Н","101-9662","Болты анкерные",null,null,"т","0\n0",0,null,0,null,0,null,1.052,1.0209999999999999,1.0349999999999999,null,null,null,null,null,null,null,null,null,null,null,null,null,null,null,null,null,null,null,null,null,null,null,null,null,null,null,null,null,null,null,null,null,null,null,null,null,null,null,null,null,"Раздел 1. Рельсовый путь № 71",null,null,null,null,1.0249999999999999,1.02,1.03,1.2,0]
["12\n*","ТССЦ-509-2631","Капсула с клеевым составом Hilti HVU-TZ M20",null,null,"шт.",1546,466887.05,null,466887.05,null,466887.05,null,1.052,1.0209999999999999,1.0349999999999999,null,null,null,null,null,null,null,null,null,null,null,null,null,null,null,null,null,null,null,null,null,null,null,null,null,null,null,null,null,null,null,null,null,null,null,null,null,null,null,null,null,"Раздел 1. Рельсовый путь № 72",null,null,null,null,1.0249999999999999,1.02,1.03,1.2,670712.1407805949]
["13\n*","ТССЦ-509-4616","Шпилька анкерная Hilti: HIT-V-5,8 М16х300 (HAS) для использования с химическими анкерами HIT",null,null,"шт.",1546,530541.43999999994,null,530541.43999999994,null,530541.43999999994,null,1.052,1.0209999999999999,1.0349999999999999,null,null,null,null,null,null,null,null,null,null,null,null,null,null,null,null,null,null,null,null,null,null,null,null,null,null,null,null,null,null,null,null,null,null,null,null,null,null,null,null,null,"Раздел 1. Рельсовый путь № 73",null,null,null,null,1.0249999999999999,1.02,1.03,1.2,762155.6112880396]
["Раздел 4. Подливка из безусадочного мелкозернистого бетона",null,null,null,null,null,null,null,null,null,null,null,null,1.052,1.0209999999999999,1.0349999999999999,null,null,null,null,null,null,null,null,null,null,null,null,null,null,null,null,null,null,null,null,null,null,null,null,null,null,null,null,null,null,null,null,null,null,null,null,null,null,null,null,null,"Раздел 1. Рельсовый путь № 74",null,null,null,null,1.0249999999999999,1.02,1.03,1.2,0]
["Рельсовый путь № 3 длинна 388,61 толщ (разрез 15-15 лист 424) 54 мм ширина (разрез 15-15 лист 424) - 400 мм",null,null,null,null,null,null,null,null,null,null,null,null,1.052,1.0209999999999999,1.0349999999999999,null,null,null,null,null,null,null,null,null,null,null,null,null,null,null,null,null,null,null,null,null,null,null,null,null,null,null,null,null,null,null,null,null,null,null,null,null,null,null,null,null,"Раздел 1. Рельсовый путь № 75",null,null,null,null,1.0249999999999999,1.02,1.03,1.2,0]
["Рельсовый путь № 2 длинна 403,510 м толщ (разрез 3-3 лист 424) 130 мм ширина (разрез 3-3 лист 424) - 600 мм",null,null,null,null,null,null,null,null,null,null,null,null,1.052,1.0209999999999999,1.0349999999999999,null,null,null,null,null,null,null,null,null,null,null,null,null,null,null,null,null,null,null,null,null,null,null,null,null,null,null,null,null,null,null,null,null,null,null,null,null,null,null,null,null,"Раздел 1. Рельсовый путь № 76",null,null,null,null,1.0249999999999999,1.02,1.03,1.2,0]
["Рельсовый путь № 1 длинна 384,745 м толщ (разрез 1-1 лист 424) 150 мм ширина (разрез 1-1 лист 424) - 600 мм",null,null,null,null,null,null,null,null,null,null,null,null,1.052,1.0209999999999999,1.0349999999999999,null,null,null,null,null,null,null,null,null,null,null,null,null,null,null,null,null,null,null,null,null,null,null,null,null,null,null,null,null,null,null,null,null,null,null,null,null,null,null,null,null,"Раздел 1. Рельсовый путь № 77",null,null,null,null,1.0249999999999999,1.02,1.03,1.2,0]
["Раздел 5. Крепление опорных деталей. Лист 282.2, 282.3",null,null,null,null,null,null,null,null,null,null,null,null,1.052,1.0209999999999999,1.0349999999999999,null,null,null,null,null,null,null,null,null,null,null,null,null,null,null,null,null,null,null,null,null,null,null,null,null,null,null,null,null,null,null,null,null,null,null,null,null,null,null,null,null,"Раздел 1. Рельсовый путь № 78",null,null,null,null,1.0249999999999999,1.02,1.03,1.2,0]
["Раздел 5. Крепление опорных деталей. Лист 424,.2, 424.3",null,null,null,null,null,null,null,null,null,null,null,null,1.052,1.0209999999999999,1.0349999999999999,null,null,null,null,null,null,null,null,null,null,null,null,null,null,null,null,null,null,null,null,null,null,null,null,null,null,null,null,null,null,null,null,null,null,null,null,null,null,null,null,null,"Раздел 1. Рельсовый путь № 79",null,null,null,null,1.0249999999999999,1.02,1.03,1.2,0]
["Крепление стоек к ростверку",null,null,null,null,null,null,null,null,null,null,null,null,1.052,1.0209999999999999,1.0349999999999999,null,null,null,null,null,null,null,null,null,null,null,null,null,null,null,null,null,null,null,null,null,null,null,null,null,null,null,null,null,null,null,null,null,null,null,null,null,null,null,null,null,"Раздел 1. Рельсовый путь № 80",null,null,null,null,1.0249999999999999,1.02,1.03,1.2,0]
["14","ТЕР46-08-012-01","Установка анкеров в отверстия глубиной 100 мм с применением смесей серии MASTERFLOW, диаметр анкера: до 8 мм",null,null,"100 шт.",3.42,10206.56,null,null,null,10206.56,null,1.052,1.0209999999999999,1.0349999999999999,null,null,null,null,null,null,null,null,null,null,null,null,null,null,null,null,null,null,null,null,null,null,null,null,null,null,null,null,null,null,null,null,null,null,null,null,null,null,null,null,null,"Раздел 1. Рельсовый путь № 81",null,null,null,null,1.0249999999999999,1.02,1.03,1.2,0]
[null,null,null,null,"Итого c накладными и см. прибылью",null,null,25688.32,null,null,null,25688.32,null,1.052,1.0209999999999999,1.0349999999999999,null,null,null,null,null,null,null,null,null,null,null,null,null,null,null,null,null,null,null,null,null,null,null,null,null,null,null,null,null,null,null,null,null,null,null,null,null,null,null,null,null,"Раздел 1. Рельсовый путь № 84",null,null,null,null,1.0249999999999999,1.02,1.03,1.2,0]
["П,Н","101-9277","Материал серии MASTERFLOW",null,null,"кг","0\n0",0,null,0,null,0,null,1.052,1.0209999999999999,1.0349999999999999,null,null,null,null,null,null,null,null,null,null,null,null,null,null,null,null,null,null,null,null,null,null,null,null,null,null,null,null,null,null,null,null,null,null,null,null,null,null,null,null,null,"Раздел 1. Рельсовый путь № 85",null,null,null,null,1.0249999999999999,1.02,1.03,1.2,0]
["П,Н","101-9662","Болты анкерные",null,null,"т","0\n0",0,null,0,null,0,null,1.052,1.0209999999999999,1.0349999999999999,null,null,null,null,null,null,null,null,null,null,null,null,null,null,null,null,null,null,null,null,null,null,null,null,null,null,null,null,null,null,null,null,null,null,null,null,null,null,null,null,null,"Раздел 1. Рельсовый путь № 86",null,null,null,null,1.0249999999999999,1.02,1.03,1.2,0]
["15","ТЕР46-08-012-06","На каждые 10 мм изменения глубины отверстия добавлять (уменьшать) к расценке: 46-08-012-01",null,null,"100 шт.",3.42,3497.91,null,null,null,3497.91,null,1.052,1.0209999999999999,1.0349999999999999,null,null,null,null,null,null,null,null,null,null,null,null,null,null,null,null,null,null,null,null,null,null,null,null,null,null,null,null,null,null,null,null,null,null,null,null,null,null,null,null,null,"Раздел 1. Рельсовый путь № 87",null,null,null,null,1.0249999999999999,1.02,1.03,1.2,0]
[null,null,null,null,"Итого c накладными и см. прибылью",null,null,8791.99,null,null,null,8791.99,null,1.052,1.0209999999999999,1.0349999999999999,null,null,null,null,null,null,null,null,null,null,null,null,null,null,null,null,null,null,null,null,null,null,null,null,null,null,null,null,null,null,null,null,null,null,null,null,null,null,null,null,null,"Раздел 1. Рельсовый путь № 90",null,null,null,null,1.0249999999999999,1.02,1.03,1.2,0]
["П,Н","101-9277","Материал серии MASTERFLOW",null,null,"кг","0\n0",0,null,0,null,0,null,1.052,1.0209999999999999,1.0349999999999999,null,null,null,null,null,null,null,null,null,null,null,null,null,null,null,null,null,null,null,null,null,null,null,null,null,null,null,null,null,null,null,null,null,null,null,null,null,null,null,null,null,"Раздел 1. Рельсовый путь № 91",null,null,null,null,1.0249999999999999,1.02,1.03,1.2,0]
["П,Н","101-9662","Болты анкерные",null,null,"т","0\n0",0,null,0,null,0,null,1.052,1.0209999999999999,1.0349999999999999,null,null,null,null,null,null,null,null,null,null,null,null,null,null,null,null,null,null,null,null,null,null,null,null,null,null,null,null,null,null,null,null,null,null,null,null,null,null,null,null,null,"Раздел 1. Рельсовый путь № 92",null,null,null,null,1.0249999999999999,1.02,1.03,1.2,0]
["16\n*","ТССЦ-509-2631","Капсула с клеевым составом Hilti HVU-TZ M20",null,null,"шт.",342,103282.91,null,103282.91,null,103282.91,null,1.052,1.0209999999999999,1.0349999999999999,null,null,null,null,null,null,null,null,null,null,null,null,null,null,null,null,null,null,null,null,null,null,null,null,null,null,null,null,null,null,null,null,null,null,null,null,null,null,null,null,null,"Раздел 1. Рельсовый путь № 93",null,null,null,null,1.0249999999999999,1.02,1.03,1.2,148372.29191117961]
["17\n*","ТССЦ-509-4616","Шпилька анкерная Hilti: HIT-V-5,8 М16х300 (HAS) для использования с химическими анкерами HIT",null,null,"шт.",342,117364.28,null,117364.28,null,117364.28,null,1.052,1.0209999999999999,1.0349999999999999,null,null,null,null,null,null,null,null,null,null,null,null,null,null,null,null,null,null,null,null,null,null,null,null,null,null,null,null,null,null,null,null,null,null,null,null,null,null,null,null,null,"Раздел 1. Рельсовый путь № 94",null,null,null,null,1.0249999999999999,1.02,1.03,1.2,168601.05134630128]
["Крепление тормозных упоров крацер-крана к роствергу",null,null,null,null,null,null,null,null,null,null,null,null,1.052,1.0209999999999999,1.0349999999999999,null,null,null,null,null,null,null,null,null,null,null,null,null,null,null,null,null,null,null,null,null,null,null,null,null,null,null,null,null,null,null,null,null,null,null,null,null,null,null,null,null,"Раздел 1. Рельсовый путь № 95",null,null,null,null,1.0249999999999999,1.02,1.03,1.2,0]
["18","ТЕР46-08-012-05","Установка анкеров в отверстия глубиной 100 мм с применением смесей серии MASTERFLOW, диаметр анкера: 20 мм и более",null,null,"100 шт.",0.24,1727.06,null,null,null,1727.06,null,1.052,1.0209999999999999,1.0349999999999999,null,null,null,null,null,null,null,null,null,null,null,null,null,null,null,null,null,null,null,null,null,null,null,null,null,null,null,null,null,null,null,null,null,null,null,null,null,null,null,null,null,"Раздел 1. Рельсовый путь № 96",null,null,null,null,1.0249999999999999,1.02,1.03,1.2,0]
[null,null,null,null,"Итого c накладными и см. прибылью",null,null,4325.1499999999996,null,null,null,4325.1499999999996,null,1.052,1.0209999999999999,1.0349999999999999,null,null,null,null,null,null,null,null,null,null,null,null,null,null,null,null,null,null,null,null,null,null,null,null,null,null,null,null,null,null,null,null,null,null,null,null,null,null,null,null,null,"Раздел 1. Рельсовый путь № 99",null,null,null,null,1.0249999999999999,1.02,1.03,1.2,0]
["П,Н","101-9277","Материал серии MASTERFLOW",null,null,"кг","0\n0",0,null,0,null,0,null,1.052,1.0209999999999999,1.0349999999999999,null,null,null,null,null,null,null,null,null,null,null,null,null,null,null,null,null,null,null,null,null,null,null,null,null,null,null,null,null,null,null,null,null,null,null,null,null,null,null,null,null,"Раздел 1. Рельсовый путь № 100",null,null,null,null,1.0249999999999999,1.02,1.03,1.2,0]
["П,Н","101-9662","Болты анкерные",null,null,"т","0\n0",0,null,0,null,0,null,1.052,1.0209999999999999,1.0349999999999999,null,null,null,null,null,null,null,null,null,null,null,null,null,null,null,null,null,null,null,null,null,null,null,null,null,null,null,null,null,null,null,null,null,null,null,null,null,null,null,null,null,"Раздел 1. Рельсовый путь № 101",null,null,null,null,1.0249999999999999,1.02,1.03,1.2,0]
["19","ТЕР46-08-012-10","На каждые 10 мм изменения глубины отверстия добавлять (уменьшать) к расценке: 46-08-012-05",null,null,"100 шт.",0.24,6251.32,null,null,null,6251.32,null,1.052,1.0209999999999999,1.0349999999999999,null,null,null,null,null,null,null,null,null,null,null,null,null,null,null,null,null,null,null,null,null,null,null,null,null,null,null,null,null,null,null,null,null,null,null,null,null,null,null,null,null,"Раздел 1. Рельсовый путь № 102",null,null,null,null,1.0249999999999999,1.02,1.03,1.2,0]
[null,null,null,null,"Итого c накладными и см. прибылью",null,null,15700.37,null,null,null,15700.37,null,1.052,1.0209999999999999,1.0349999999999999,null,null,null,null,null,null,null,null,null,null,null,null,null,null,null,null,null,null,null,null,null,null,null,null,null,null,null,null,null,null,null,null,null,null,null,null,null,null,null,null,null,"Раздел 1. Рельсовый путь № 105",null,null,null,null,1.0249999999999999,1.02,1.03,1.2,0]
["П,Н","101-9277","Материал серии MASTERFLOW",null,null,"кг","0\n0",0,null,0,null,0,null,1.052,1.0209999999999999,1.0349999999999999,null,null,null,null,null,null,null,null,null,null,null,null,null,null,null,null,null,null,null,null,null,null,null,null,null,null,null,null,null,null,null,null,null,null,null,null,null,null,null,null,null,"Раздел 1. Рельсовый путь № 106",null,null,null,null,1.0249999999999999,1.02,1.03,1.2,0]
["П,Н","101-9662","Болты анкерные",null,null,"т","0\n0",0,null,0,null,0,null,1.052,1.0209999999999999,1.0349999999999999,null,null,null,null,null,null,null,null,null,null,null,null,null,null,null,null,null,null,null,null,null,null,null,null,null,null,null,null,null,null,null,null,null,null,null,null,null,null,null,null,null,"Раздел 1. Рельсовый путь № 107",null,null,null,null,1.0249999999999999,1.02,1.03,1.2,0]
["20\n*","ТССЦ-509-4614","Анкер химический (капсула с клеевым составом) Hilti HVU М24/210",null,null,"шт.",24,18828.580000000002,null,18828.580000000002,null,18828.580000000002,null,1.052,1.0209999999999999,1.0349999999999999,null,null,null,null,null,null,null,null,null,null,null,null,null,null,null,null,null,null,null,null,null,null,null,null,null,null,null,null,null,null,null,null,null,null,null,null,null,null,null,null,null,"Раздел 1. Рельсовый путь № 108",null,null,null,null,1.0249999999999999,1.02,1.03,1.2,27048.420382742886]
["21\n*","ТССЦ-509-4617","Шпилька анкерная Hilti: HIT-V-5,8 М24х450 (HAS) для использования с химическими анкерами HIT",null,null,"шт.",24,27405.7,null,27405.7,null,27405.7,null,1.052,1.0209999999999999,1.0349999999999999,null,null,null,null,null,null,null,null,null,null,null,null,null,null,null,null,null,null,null,null,null,null,null,null,null,null,null,null,null,null,null,null,null,null,null,null,null,null,null,null,null,"Раздел 1. Рельсовый путь № 109",null,null,null,null,1.0249999999999999,1.02,1.03,1.2,39369.984060578987]
["Крепление крацер-крана в сервесном положении",null,null,null,null,null,null,null,null,null,null,null,null,1.052,1.0209999999999999,1.0349999999999999,null,null,null,null,null,null,null,null,null,null,null,null,null,null,null,null,null,null,null,null,null,null,null,null,null,null,null,null,null,null,null,null,null,null,null,null,null,null,null,null,null,"Раздел 1. Рельсовый путь № 110",null,null,null,null,1.0249999999999999,1.02,1.03,1.2,0]
["22","ТЕР46-08-012-01","Установка анкеров в отверстия глубиной 100 мм с применением смесей серии MASTERFLOW, диаметр анкера: до 8 мм",null,null,"100 шт.",0.24,716.25,null,null,null,716.25,null,1.052,1.0209999999999999,1.0349999999999999,null,null,null,null,null,null,null,null,null,null,null,null,null,null,null,null,null,null,null,null,null,null,null,null,null,null,null,null,null,null,null,null,null,null,null,null,null,null,null,null,null,"Раздел 1. Рельсовый путь № 111",null,null,null,null,1.0249999999999999,1.02,1.03,1.2,0]
[null,null,null,null,"Итого c накладными и см. прибылью",null,null,1802.69,null,null,null,1802.69,null,1.052,1.0209999999999999,1.0349999999999999,null,null,null,null,null,null,null,null,null,null,null,null,null,null,null,null,null,null,null,null,null,null,null,null,null,null,null,null,null,null,null,null,null,null,null,null,null,null,null,null,null,"Раздел 1. Рельсовый путь № 114",null,null,null,null,1.0249999999999999,1.02,1.03,1.2,0]
["П,Н","101-9277","Материал серии MASTERFLOW",null,null,"кг","0\n0",0,null,0,null,0,null,1.052,1.0209999999999999,1.0349999999999999,null,null,null,null,null,null,null,null,null,null,null,null,null,null,null,null,null,null,null,null,null,null,null,null,null,null,null,null,null,null,null,null,null,null,null,null,null,null,null,null,null,"Раздел 1. Рельсовый путь № 115",null,null,null,null,1.0249999999999999,1.02,1.03,1.2,0]
["П,Н","101-9662","Болты анкерные",null,null,"т","0\n0",0,null,0,null,0,null,1.052,1.0209999999999999,1.0349999999999999,null,null,null,null,null,null,null,null,null,null,null,null,null,null,null,null,null,null,null,null,null,null,null,null,null,null,null,null,null,null,null,null,null,null,null,null,null,null,null,null,null,"Раздел 1. Рельсовый путь № 116",null,null,null,null,1.0249999999999999,1.02,1.03,1.2,0]
["23","ТЕР46-08-012-06","На каждые 10 мм изменения глубины отверстия добавлять (уменьшать) к расценке: 46-08-012-01",null,null,"100 шт.",0.24,1841.01,null,null,null,1841.01,null,1.052,1.0209999999999999,1.0349999999999999,null,null,null,null,null,null,null,null,null,null,null,null,null,null,null,null,null,null,null,null,null,null,null,null,null,null,null,null,null,null,null,null,null,null,null,null,null,null,null,null,null,"Раздел 1. Рельсовый путь № 117",null,null,null,null,1.0249999999999999,1.02,1.03,1.2,0]
[null,null,null,null,"Итого c накладными и см. прибылью",null,null,4627.38,null,null,null,4627.38,null,1.052,1.0209999999999999,1.0349999999999999,null,null,null,null,null,null,null,null,null,null,null,null,null,null,null,null,null,null,null,null,null,null,null,null,null,null,null,null,null,null,null,null,null,null,null,null,null,null,null,null,null,"Раздел 1. Рельсовый путь № 120",null,null,null,null,1.0249999999999999,1.02,1.03,1.2,0]
["П,Н","101-9277","Материал серии MASTERFLOW",null,null,"кг","0\n0",0,null,0,null,0,null,1.052,1.0209999999999999,1.0349999999999999,null,null,null,null,null,null,null,null,null,null,null,null,null,null,null,null,null,null,null,null,null,null,null,null,null,null,null,null,null,null,null,null,null,null,null,null,null,null,null,null,null,"Раздел 1. Рельсовый путь № 121",null,null,null,null,1.0249999999999999,1.02,1.03,1.2,0]
["П,Н","101-9662","Болты анкерные",null,null,"т","0\n0",0,null,0,null,0,null,1.052,1.0209999999999999,1.0349999999999999,null,null,null,null,null,null,null,null,null,null,null,null,null,null,null,null,null,null,null,null,null,null,null,null,null,null,null,null,null,null,null,null,null,null,null,null,null,null,null,null,null,"Раздел 1. Рельсовый путь № 122",null,null,null,null,1.0249999999999999,1.02,1.03,1.2,0]
["24\n*","ТССЦ-509-2631","Капсула с клеевым составом Hilti HVU-TZ M20",null,null,"шт.",24,7247.92,null,7247.92,null,7247.92,null,1.052,1.0209999999999999,1.0349999999999999,null,null,null,null,null,null,null,null,null,null,null,null,null,null,null,null,null,null,null,null,null,null,null,null,null,null,null,null,null,null,null,null,null,null,null,null,null,null,null,null,null,"Раздел 1. Рельсовый путь № 123",null,null,null,null,1.0249999999999999,1.02,1.03,1.2,10412.085619865638]
["25\n*","ТССЦ-509-4616","Шпилька анкерная Hilti: HIT-V-5,8 М16х300 (HAS) для использования с химическими анкерами HIT",null,null,"шт.",24,8236.09,null,8236.09,null,8236.09,null,1.052,1.0209999999999999,1.0349999999999999,null,null,null,null,null,null,null,null,null,null,null,null,null,null,null,null,null,null,null,null,null,null,null,null,null,null,null,null,null,null,null,null,null,null,null,null,null,null,null,null,null,"Раздел 1. Рельсовый путь № 124",null,null,null,null,1.0249999999999999,1.02,1.03,1.2,11831.652978084636]
["Крепление стоек подъемной карентки к роствергу",null,null,null,null,null,null,null,null,null,null,null,null,1.052,1.0209999999999999,1.0349999999999999,null,null,null,null,null,null,null,null,null,null,null,null,null,null,null,null,null,null,null,null,null,null,null,null,null,null,null,null,null,null,null,null,null,null,null,null,null,null,null,null,null,"Раздел 1. Рельсовый путь № 125",null,null,null,null,1.0249999999999999,1.02,1.03,1.2,0]
["26","ТЕР46-08-012-01","Установка анкеров в отверстия глубиной 100 мм с применением смесей серии MASTERFLOW, диаметр анкера: до 8 мм",null,null,"100 шт.",0.16,477.5,null,null,null,477.5,null,1.052,1.0209999999999999,1.0349999999999999,null,null,null,null,null,null,null,null,null,null,null,null,null,null,null,null,null,null,null,null,null,null,null,null,null,null,null,null,null,null,null,null,null,null,null,null,null,null,null,null,null,"Раздел 1. Рельсовый путь № 126",null,null,null,null,1.0249999999999999,1.02,1.03,1.2,0]
[null,null,null,null,"Итого c накладными и см. прибылью",null,null,1201.78,null,null,null,1201.78,null,1.052,1.0209999999999999,1.0349999999999999,null,null,null,null,null,null,null,null,null,null,null,null,null,null,null,null,null,null,null,null,null,null,null,null,null,null,null,null,null,null,null,null,null,null,null,null,null,null,null,null,null,"Раздел 1. Рельсовый путь № 129",null,null,null,null,1.0249999999999999,1.02,1.03,1.2,0]
["П,Н","101-9277","Материал серии MASTERFLOW",null,null,"кг","0\n0",0,null,0,null,0,null,1.052,1.0209999999999999,1.0349999999999999,null,null,null,null,null,null,null,null,null,null,null,null,null,null,null,null,null,null,null,null,null,null,null,null,null,null,null,null,null,null,null,null,null,null,null,null,null,null,null,null,null,"Раздел 1. Рельсовый путь № 130",null,null,null,null,1.0249999999999999,1.02,1.03,1.2,0]
["П,Н","101-9662","Болты анкерные",null,null,"т","0\n0",0,null,0,null,0,null,1.052,1.0209999999999999,1.0349999999999999,null,null,null,null,null,null,null,null,null,null,null,null,null,null,null,null,null,null,null,null,null,null,null,null,null,null,null,null,null,null,null,null,null,null,null,null,null,null,null,null,null,"Раздел 1. Рельсовый путь № 131",null,null,null,null,1.0249999999999999,1.02,1.03,1.2,{"$f":"J120*N120*O120*P120*BK120*BL120*BM120*BN120","v":0}]
["27","ТЕР46-08-012-06","На каждые 10 мм изменения глубины отверстия добавлять (уменьшать) к расценке: 46-08-012-01",null,null,"100 шт.",0.16,1227.3399999999999,null,null,null,1227.3399999999999,null,1.052,1.0209999999999999,1.0349999999999999,null,null,null,null,null,null,null,null,null,null,null,null,null,null,null,null,null,null,null,null,null,null,null,null,null,null,null,null,null,null,null,null,null,null,null,null,null,null,null,null,null,"Раздел 1. Рельсовый путь № 132",null,null,null,null,1.0249999999999999,1.02,1.03,1.2,0]
[null,null,null,null,"Итого c накладными и см. прибылью",null,null,3084.91,null,null,null,3084.91,null,1.052,1.0209999999999999,1.0349999999999999,null,null,null,null,null,null,null,null,null,null,null,null,null,null,null,null,null,null,null,null,null,null,null,null,null,null,null,null,null,null,null,null,null,null,null,null,null,null,null,null,null,"Раздел 1. Рельсовый путь № 135",null,null,null,null,1.0249999999999999,1.02,1.03,1.2,0]
["П,Н","101-9277","Материал серии MASTERFLOW",null,null,"кг","0\n0",0,null,0,null,0,null,1.052,1.0209999999999999,1.0349999999999999,null,null,null,null,null,null,null,null,null,null,null,null,null,null,null,null,null,null,null,null,null,null,null,null,null,null,null,null,null,null,null,null,null,null,null,null,null,null,null,null,null,"Раздел 1. Рельсовый путь № 136",null,null,null,null,1.0249999999999999,1.02,1.03,1.2,0]
["П,Н","101-9662","Болты анкерные",null,null,"т","0\n0",0,null,0,null,0,null,1.052,1.0209999999999999,1.0349999999999999,null,null,null,null,null,null,null,null,null,null,null,null,null,null,null,null,null,null,null,null,null,null,null,null,null,null,null,null,null,null,null,null,null,null,null,null,null,null,null,null,null,"Раздел 1. Рельсовый путь № 137",null,null,null,null,1.0249999999999999,1.02,1.03,1.2,0]
["28\n*","ТССЦ-509-4614","Анкер химический (капсула с клеевым составом) Hilti HVU М24/210",null,null,"шт.",16,12552.38,null,12552.38,null,12552.38,null,1.052,1.0209999999999999,1.0349999999999999,null,null,null,null,null,null,null,null,null,null,null,null,null,null,null,null,null,null,null,null,null,null,null,null,null,null,null,null,null,null,null,null,null,null,null,null,null,null,null,null,null,"Раздел 1. Рельсовый путь № 138",null,null,null,null,1.0249999999999999,1.02,1.03,1.2,18032.270678082677]
["29\n*","ТССЦ-509-4617","Шпилька анкерная Hilti: HIT-V-5,8 М24х450 (HAS) для использования с химическими анкерами HIT",null,null,"шт.",16,18270.46,null,18270.46,null,18270.46,null,1.052,1.0209999999999999,1.0349999999999999,null,null,null,null,null,null,null,null,null,null,null,null,null,null,null,null,null,null,null,null,null,null,null,null,null,null,null,null,null,null,null,null,null,null,null,null,null,null,null,null,null,"Раздел 1. Рельсовый путь № 139",null,null,null,null,1.0249999999999999,1.02,1.03,1.2,26246.646463306763]
["30","ТЕР46-03-014-01","Сверление вертикальных отверстий в железобетонных конструкциях полов перфоратором глубиной 200 мм диаметром: 20 мм",null,null,"100 отверстий",0.08,372.22,null,null,null,372.22,null,1.052,1.0209999999999999,1.0349999999999999,null,null,null,null,null,null,null,null,null,null,null,null,null,null,null,null,null,null,null,null,null,null,null,null,null,null,null,null,null,null,null,null,null,null,null,null,null,null,null,null,null,"Раздел 1. Рельсовый путь № 140",null,null,null,null,1.0249999999999999,1.02,1.03,1.2,0]
[null,null,null,null,"Итого c накладными и см. прибылью",null,null,743.61,null,null,null,743.61,null,1.052,1.0209999999999999,1.0349999999999999,null,null,null,null,null,null,null,null,null,null,null,null,null,null,null,null,null,null,null,null,null,null,null,null,null,null,null,null,null,null,null,null,null,null,null,null,null,null,null,null,null,"Раздел 1. Рельсовый путь № 143",null,null,null,null,1.0249999999999999,1.02,1.03,1.2,0]
["31","ТЕР46-03-014-14","На каждые 10 мм изменения глубины сверления добавлять или исключать: к расценке 46-03-014-01",null,null,"100 отверстий",-0.08,-159.29,null,null,null,-159.29,null,1.052,1.0209999999999999,1.0349999999999999,null,null,null,null,null,null,null,null,null,null,null,null,null,null,null,null,null,null,null,null,null,null,null,null,null,null,null,null,null,null,null,null,null,null,null,null,null,null,null,null,null,"Раздел 1. Рельсовый путь № 144",null,null,null,null,1.0249999999999999,1.02,1.03,1.2,0]
[null,null,null,null,"Итого c накладными и см. прибылью",null,null,-306.02999999999997,null,null,null,-306.02999999999997,null,1.052,1.0209999999999999,1.0349999999999999,null,null,null,null,null,null,null,null,null,null,null,null,null,null,null,null,null,null,null,null,null,null,null,null,null,null,null,null,null,null,null,null,null,null,null,null,null,null,null,null,null,"Раздел 1. Рельсовый путь № 147",null,null,null,null,1.0249999999999999,1.02,1.03,1.2,0]
["32","ТЕР06-01-015-03","Установка анкерных болтов: при бетонировании со связями из арматуры",null,null,"1 т",2.317E-3,328.46,null,193.27,null,328.46,null,1.052,1.0209999999999999,1.0349999999999999,null,null,null,null,null,null,null,null,null,null,null,null,null,null,null,null,null,null,null,null,null,null,null,null,null,null,null,null,null,null,null,null,null,null,null,null,null,null,null,null,null,"Раздел 1. Рельсовый путь № 148",null,null,null,null,1.0249999999999999,1.02,1.03,1.2,277.64431557625244]
[null,null,null,null,"Итого c накладными и см. прибылью",null,null,541.47,null,null,null,541.47,null,1.052,1.0209999999999999,1.0349999999999999,null,null,null,null,null,null,null,null,null,null,null,null,null,null,null,null,null,null,null,null,null,null,null,null,null,null,null,null,null,null,null,null,null,null,null,null,null,null,null,null,null,"Раздел 1. Рельсовый путь № 151",null,null,null,null,1.0249999999999999,1.02,1.03,1.2,0]
[null,"101-1513","Электроды диаметром: 4 мм Э42",null,null,"т","0,002\n0",0,null,0,null,0,null,1.052,1.0209999999999999,1.0349999999999999,null,null,null,null,null,null,null,null,null,null,null,null,null,null,null,null,null,null,null,null,null,null,null,null,null,null,null,null,null,null,null,null,null,null,null,null,null,null,null,null,null,"Раздел 1. Рельсовый путь № 152",null,null,null,null,1.0249999999999999,1.02,1.03,1.2,0]
[null,"201-0798","Кондуктор инвентарный металлический",null,null,"шт.","0,01\n0",0,null,0,null,0,null,1.052,1.0209999999999999,1.0349999999999999,null,null,null,null,null,null,null,null,null,null,null,null,null,null,null,null,null,null,null,null,null,null,null,null,null,null,null,null,null,null,null,null,null,null,null,null,null,null,null,null,null,"Раздел 1. Рельсовый путь № 153",null,null,null,null,1.0249999999999999,1.02,1.03,1.2,0]
[null,"204-0005","Горячекатаная арматурная сталь гладкая класса А-I, диаметром: 14 мм",null,null,"т","0,09\n0,0002",1.2,null,1.2,null,1.2,null,1.052,1.0209999999999999,1.0349999999999999,null,null,null,null,null,null,null,null,null,null,null,null,null,null,null,null,null,null,null,null,null,null,null,null,null,null,null,null,null,null,null,null,null,null,null,null,null,null,null,null,null,"Раздел 1. Рельсовый путь № 154",null,null,null,null,1.0249999999999999,1.02,1.03,1.2,1.7238742623868315]
[null,"204-0059","Анкерные детали из прямых или гнутых круглых стержней с резьбой (в комплекте с шайбами и гайками или без них),: поставляемые отдельно",null,null,"т","1\n0,0023",21.1,null,21.1,null,21.1,null,1.052,1.0209999999999999,1.0349999999999999,null,null,null,null,null,null,null,null,null,null,null,null,null,null,null,null,null,null,null,null,null,null,null,null,null,null,null,null,null,null,null,null,null,null,null,null,null,null,null,null,null,"Раздел 1. Рельсовый путь № 155",null,null,null,null,1.0249999999999999,1.02,1.03,1.2,30.311455780301792]
["Крепление тормазных упоров мобильного бункера",null,null,null,null,null,null,null,null,null,null,null,null,1.052,1.0209999999999999,1.0349999999999999,null,null,null,null,null,null,null,null,null,null,null,null,null,null,null,null,null,null,null,null,null,null,null,null,null,null,null,null,null,null,null,null,null,null,null,null,null,null,null,null,null,"Раздел 1. Рельсовый путь № 156",null,null,null,null,1.0249999999999999,1.02,1.03,1.2,0]
["33","ТЕР46-08-012-01","Установка анкеров в отверстия глубиной 100 мм с применением смесей серии MASTERFLOW, диаметр анкера: до 8 мм",null,null,"100 шт.",0.18,537.19000000000005,null,null,null,537.19000000000005,null,1.052,1.0209999999999999,1.0349999999999999,null,null,null,null,null,null,null,null,null,null,null,null,null,null,null,null,null,null,null,null,null,null,null,null,null,null,null,null,null,null,null,null,null,null,null,null,null,null,null,null,null,"Раздел 1. Рельсовый путь № 157",null,null,null,null,1.0249999999999999,1.02,1.03,1.2,0]
[null,null,null,null,"Итого c накладными и см. прибылью",null,null,1352.02,null,null,null,1352.02,null,1.052,1.0209999999999999,1.0349999999999999,null,null,null,null,null,null,null,null,null,null,null,null,null,null,null,null,null,null,null,null,null,null,null,null,null,null,null,null,null,null,null,null,null,null,null,null,null,null,null,null,null,"Раздел 1. Рельсовый путь № 160",null,null,null,null,1.0249999999999999,1.02,1.03,1.2,0]
["П,Н","101-9277","Материал серии MASTERFLOW",null,null,"кг","0\n0",0,null,0,null,0,null,1.052,1.0209999999999999,1.0349999999999999,null,null,null,null,null,null,null,null,null,null,null,null,null,null,null,null,null,null,null,null,null,null,null,null,null,null,null,null,null,null,null,null,null,null,null,null,null,null,null,null,null,"Раздел 1. Рельсовый путь № 161",null,null,null,null,1.0249999999999999,1.02,1.03,1.2,0]
["П,Н","101-9662","Болты анкерные",null,null,"т","0\n0",0,null,0,null,0,null,1.052,1.0209999999999999,1.0349999999999999,null,null,null,null,null,null,null,null,null,null,null,null,null,null,null,null,null,null,null,null,null,null,null,null,null,null,null,null,null,null,null,null,null,null,null,null,null,null,null,null,null,"Раздел 1. Рельсовый путь № 162",null,null,null,null,1.0249999999999999,1.02,1.03,1.2,0]
["34","ТЕР46-08-012-06","На каждые 10 мм изменения глубины отверстия добавлять (уменьшать) к расценке: 46-08-012-01",null,null,"100 шт.",0.18,1380.76,null,null,null,1380.76,null,1.052,1.0209999999999999,1.0349999999999999,null,null,null,null,null,null,null,null,null,null,null,null,null,null,null,null,null,null,null,null,null,null,null,null,null,null,null,null,null,null,null,null,null,null,null,null,null,null,null,null,null,"Раздел 1. Рельсовый путь № 163",null,null,null,null,1.0249999999999999,1.02,1.03,1.2,0]
[null,null,null,null,"Итого c накладными и см. прибылью",null,null,3470.53,null,null,null,3470.53,null,1.052,1.0209999999999999,1.0349999999999999,null,null,null,null,null,null,null,null,null,null,null,null,null,null,null,null,null,null,null,null,null,null,null,null,null,null,null,null,null,null,null,null,null,null,null,null,null,null,null,null,null,"Раздел 1. Рельсовый путь № 166",null,null,null,null,1.0249999999999999,1.02,1.03,1.2,0]
["П,Н","101-9277","Материал серии MASTERFLOW",null,null,"кг","0\n0",0,null,0,null,0,null,1.052,1.0209999999999999,1.0349999999999999,null,null,null,null,null,null,null,null,null,null,null,null,null,null,null,null,null,null,null,null,null,null,null,null,null,null,null,null,null,null,null,null,null,null,null,null,null,null,null,null,null,"Раздел 1. Рельсовый путь № 167",null,null,null,null,1.0249999999999999,1.02,1.03,1.2,0]
["П,Н","101-9662","Болты анкерные",null,null,"т","0\n0",0,null,0,null,0,null,1.052,1.0209999999999999,1.0349999999999999,null,null,null,null,null,null,null,null,null,null,null,null,null,null,null,null,null,null,null,null,null,null,null,null,null,null,null,null,null,null,null,null,null,null,null,null,null,null,null,null,null,"Раздел 1. Рельсовый путь № 168",null,null,null,null,1.0249999999999999,1.02,1.03,1.2,0]
["35\n*","ТССЦ-509-4614","Анкер химический (капсула с клеевым составом) Hilti HVU М24/210",null,null,"шт.",18,14121.43,null,14121.43,null,14121.43,null,1.052,1.0209999999999999,1.0349999999999999,null,null,null,null,null,null,null,null,null,null,null,null,null,null,null,null,null,null,null,null,null,null,null,null,null,null,null,null,null,null,null,null,null,null,null,null,null,null,null,null,null,"Раздел 1. Рельсовый путь № 169",null,null,null,null,1.0249999999999999,1.02,1.03,1.2,20286.308104247724]
["36\n*","ТССЦ-509-4617","Шпилька анкерная Hilti: HIT-V-5,8 М24х450 (HAS) для использования с химическими анкерами HIT",null,null,"шт.",18,20554.27,null,20554.27,null,20554.27,null,1.052,1.0209999999999999,1.0349999999999999,null,null,null,null,null,null,null,null,null,null,null,null,null,null,null,null,null,null,null,null,null,null,null,null,null,null,null,null,null,null,null,null,null,null,null,null,null,null,null,null,null,"Раздел 1. Рельсовый путь № 170",null,null,null,null,1.0249999999999999,1.02,1.03,1.2,29527.480862624816]
["37","ТЕР46-03-014-01","Сверление вертикальных отверстий в железобетонных конструкциях полов перфоратором глубиной 200 мм диаметром: 20 мм",null,null,"100 отверстий",0.18,837.49,null,null,null,837.49,null,1.052,1.0209999999999999,1.0349999999999999,null,null,null,null,null,null,null,null,null,null,null,null,null,null,null,null,null,null,null,null,null,null,null,null,null,null,null,null,null,null,null,null,null,null,null,null,null,null,null,null,null,"Раздел 1. Рельсовый путь № 171",null,null,null,null,1.0249999999999999,1.02,1.03,1.2,0]
[null,null,null,null,"Итого c накладными и см. прибылью",null,null,1673.1,null,null,null,1673.1,null,1.052,1.0209999999999999,1.0349999999999999,null,null,null,null,null,null,null,null,null,null,null,null,null,null,null,null,null,null,null,null,null,null,null,null,null,null,null,null,null,null,null,null,null,null,null,null,null,null,null,null,null,"Раздел 1. Рельсовый путь № 174",null,null,null,null,1.0249999999999999,1.02,1.03,1.2,0]
["38","ТЕР46-03-014-14","На каждые 10 мм изменения глубины сверления добавлять или исключать: к расценке 46-03-014-01",null,null,"100 отверстий",-0.18,-358.4,null,null,null,-358.4,null,1.052,1.0209999999999999,1.0349999999999999,null,null,null,null,null,null,null,null,null,null,null,null,null,null,null,null,null,null,null,null,null,null,null,null,null,null,null,null,null,null,null,null,null,null,null,null,null,null,null,null,null,"Раздел 1. Рельсовый путь № 175",null,null,null,null,1.0249999999999999,1.02,1.03,1.2,0]
[null,null,null,null,"Итого c накладными и см. прибылью",null,null,-688.55,null,null,null,-688.55,null,1.052,1.0209999999999999,1.0349999999999999,null,null,null,null,null,null,null,null,null,null,null,null,null,null,null,null,null,null,null,null,null,null,null,null,null,null,null,null,null,null,null,null,null,null,null,null,null,null,null,null,null,"Раздел 1. Рельсовый путь № 178",null,null,null,null,1.0249999999999999,1.02,1.03,1.2,0]
["39","ТЕР06-01-015-03","Установка анкерных болтов: при бетонировании со связями из арматуры",null,null,"1 т",4.0860000000000002E-3,579.23,null,340.83,null,579.23,null,1.052,1.0209999999999999,1.0349999999999999,null,null,null,null,null,null,null,null,null,null,null,null,null,null,null,null,null,null,null,null,null,null,null,null,null,null,null,null,null,null,null,null,null,null,null,null,null,null,null,null,null,"Раздел 1. Рельсовый путь № 179",null,null,null,null,1.0249999999999999,1.02,1.03,1.2,489.62338737441985]
[null,null,null,null,"Итого c накладными и см. прибылью",null,null,954.87,null,null,null,954.87,null,1.052,1.0209999999999999,1.0349999999999999,null,null,null,null,null,null,null,null,null,null,null,null,null,null,null,null,null,null,null,null,null,null,null,null,null,null,null,null,null,null,null,null,null,null,null,null,null,null,null,null,null,"Раздел 1. Рельсовый путь № 182",null,null,null,null,1.0249999999999999,1.02,1.03,1.2,0]
[null,"101-1513","Электроды диаметром: 4 мм Э42",null,null,"т","0,002\n0",0,null,0,null,0,null,1.052,1.0209999999999999,1.0349999999999999,null,null,null,null,null,null,null,null,null,null,null,null,null,null,null,null,null,null,null,null,null,null,null,null,null,null,null,null,null,null,null,null,null,null,null,null,null,null,null,null,null,"Раздел 1. Рельсовый путь № 183",null,null,null,null,1.0249999999999999,1.02,1.03,1.2,0]
[null,"201-0798","Кондуктор инвентарный металлический",null,null,"шт.","0,01\n0",0,null,0,null,0,null,1.052,1.0209999999999999,1.0349999999999999,null,null,null,null,null,null,null,null,null,null,null,null,null,null,null,null,null,null,null,null,null,null,null,null,null,null,null,null,null,null,null,null,null,null,null,null,null,null,null,null,null,"Раздел 1. Рельсовый путь № 184",null,null,null,null,1.0249999999999999,1.02,1.03,1.2,0]
[null,"204-0005","Горячекатаная арматурная сталь гладкая класса А-I, диаметром: 14 мм",null,null,"т","0,09\n0,0004",2.41,null,2.41,null,2.41,null,1.052,1.0209999999999999,1.0349999999999999,null,null,null,null,null,null,null,null,null,null,null,null,null,null,null,null,null,null,null,null,null,null,null,null,null,null,null,null,null,null,null,null,null,null,null,null,null,null,null,null,null,"Раздел 1. Рельсовый путь № 185",null,null,null,null,1.0249999999999999,1.02,1.03,1.2,3.462114143626887]
[null,"204-0059","Анкерные детали из прямых или гнутых круглых стержней с резьбой (в комплекте с шайбами и гайками или без них),: поставляемые отдельно",null,null,"т","1\n0,0041",37.619999999999997,null,37.619999999999997,null,37.619999999999997,null,1.052,1.0209999999999999,1.0349999999999999,null,null,null,null,null,null,null,null,null,null,null,null,null,null,null,null,null,null,null,null,null,null,null,null,null,null,null,null,null,null,null,null,null,null,null,null,null,null,null,null,null,"Раздел 1. Рельсовый путь № 186",null,null,null,null,1.0249999999999999,1.02,1.03,1.2,54.043458125827172]
["Крепление стоек орграждения к роствергу",null,null,null,null,null,null,null,null,null,null,null,null,1.052,1.0209999999999999,1.0349999999999999,null,null,null,null,null,null,null,null,null,null,null,null,null,null,null,null,null,null,null,null,null,null,null,null,null,null,null,null,null,null,null,null,null,null,null,null,null,null,null,null,null,"Раздел 1. Рельсовый путь № 187",null,null,null,null,1.0249999999999999,1.02,1.03,1.2,0]
["40","ТЕР46-08-012-01","Установка анкеров в отверстия глубиной 100 мм с применением смесей серии MASTERFLOW, диаметр анкера: до 8 мм",null,null,"100 шт.",60,179062.44,null,null,null,179062.44,null,1.052,1.0209999999999999,1.0349999999999999,null,null,null,null,null,null,null,null,null,null,null,null,null,null,null,null,null,null,null,null,null,null,null,null,null,null,null,null,null,null,null,null,null,null,null,null,null,null,null,null,null,"Раздел 1. Рельсовый путь № 188",null,null,null,null,1.0249999999999999,1.02,1.03,1.2,0]
[null,null,null,null,"Итого c накладными и см. прибылью",null,null,450672.24,null,null,null,450672.24,null,1.052,1.0209999999999999,1.0349999999999999,null,null,null,null,null,null,null,null,null,null,null,null,null,null,null,null,null,null,null,null,null,null,null,null,null,null,null,null,null,null,null,null,null,null,null,null,null,null,null,null,null,"Раздел 1. Рельсовый путь № 191",null,null,null,null,1.0249999999999999,1.02,1.03,1.2,0]
["П,Н","101-9277","Материал серии MASTERFLOW",null,null,"кг","0\n0",0,null,0,null,0,null,1.052,1.0209999999999999,1.0349999999999999,null,null,null,null,null,null,null,null,null,null,null,null,null,null,null,null,null,null,null,null,null,null,null,null,null,null,null,null,null,null,null,null,null,null,null,null,null,null,null,null,null,"Раздел 1. Рельсовый путь № 192",null,null,null,null,1.0249999999999999,1.02,1.03,1.2,0]
["П,Н","101-9662","Болты анкерные",null,null,"т","0\n0",0,null,0,null,0,null,1.052,1.0209999999999999,1.0349999999999999,null,null,null,null,null,null,null,null,null,null,null,null,null,null,null,null,null,null,null,null,null,null,null,null,null,null,null,null,null,null,null,null,null,null,null,null,null,null,null,null,null,"Раздел 1. Рельсовый путь № 193",null,null,null,null,1.0249999999999999,1.02,1.03,1.2,0]
["41","ТЕР46-08-012-06","На каждые 10 мм изменения глубины отверстия добавлять (уменьшать) к расценке: 46-08-012-01",null,null,"100 шт.",60,153417.49,null,null,null,153417.49,null,1.052,1.0209999999999999,1.0349999999999999,null,null,null,null,null,null,null,null,null,null,null,null,null,null,null,null,null,null,null,null,null,null,null,null,null,null,null,null,null,null,null,null,null,null,null,null,null,null,null,null,null,"Раздел 1. Рельсовый путь № 194",null,null,null,null,1.0249999999999999,1.02,1.03,1.2,0]
[null,null,null,null,"Итого c накладными и см. прибылью",null,null,385614.28,null,null,null,385614.28,null,1.052,1.0209999999999999,1.0349999999999999,null,null,null,null,null,null,null,null,null,null,null,null,null,null,null,null,null,null,null,null,null,null,null,null,null,null,null,null,null,null,null,null,null,null,null,null,null,null,null,null,null,"Раздел 1. Рельсовый путь № 197",null,null,null,null,1.0249999999999999,1.02,1.03,1.2,{"$f":"J164*N164*O164*P164*BK164*BL164*BM164*BN164","v":0}]
["П,Н","101-9277","Материал серии MASTERFLOW",null,null,"кг","0\n0",0,null,0,null,0,null,1.052,1.0209999999999999,1.0349999999999999,null,null,null,null,null,null,null,null,null,null,null,null,null,null,null,null,null,null,null,null,null,null,null,null,null,null,null,null,null,null,null,null,null,null,null,null,null,null,null,null,null,"Раздел 1. Рельсовый путь № 198",null,null,null,null,1.0249999999999999,1.02,1.03,1.2,0]
["П,Н","101-9662","Болты анкерные",null,null,"т","0\n0",0,null,0,null,0,null,1.052,1.0209999999999999,1.0349999999999999,null,null,null,null,null,null,null,null,null,null,null,null,null,null,null,null,null,null,null,null,null,null,null,null,null,null,null,null,null,null,null,null,null,null,null,null,null,null,null,null,null,"Раздел 1. Рельсовый путь № 199",null,null,null,null,1.0249999999999999,1.02,1.03,1.2,0]
["42\n*","ТССЦ-509-2631","Капсула с клеевым составом Hilti HVU-TZ M20",null,null,"шт.",60,18119.810000000001,null,18119.810000000001,null,18119.810000000001,null,1.052,1.0209999999999999,1.0349999999999999,null,null,null,null,null,null,null,null,null,null,null,null,null,null,null,null,null,null,null,null,null,null,null,null,null,null,null,null,null,null,null,null,null,null,null,null,null,null,null,null,null,"Раздел 1. Рельсовый путь № 200",null,null,null,null,1.0249999999999999,1.02,1.03,1.2,26030.228415282945]
["43\n*","ТССЦ-509-4616","Шпилька анкерная Hilti: HIT-V-5,8 М16х300 (HAS) для использования с химическими анкерами HIT",null,null,"шт.",60,20590.22,null,20590.22,null,20590.22,null,1.052,1.0209999999999999,1.0349999999999999,null,null,null,null,null,null,null,null,null,null,null,null,null,null,null,null,null,null,null,null,null,null,null,null,null,null,null,null,null,null,null,null,null,null,null,null,null,null,null,null,null,"Раздел 1. Рельсовый путь № 201",null,null,null,null,1.0249999999999999,1.02,1.03,1.2,29579.125262402158]
["Раздел 6. Подливка под детали Микролит или аналог",null,null,null,null,null,null,null,null,null,null,null,null,1.052,1.0209999999999999,1.0349999999999999,null,null,null,null,null,null,null,null,null,null,null,null,null,null,null,null,null,null,null,null,null,null,null,null,null,null,null,null,null,null,null,null,null,null,null,null,null,null,null,null,null,"Раздел 1. Рельсовый путь № 202",null,null,null,null,1.0249999999999999,1.02,1.03,1.2,0]
["узел а лист 424.2,3 (количество деталей 342)",null,null,null,null,null,null,null,null,null,null,null,null,1.052,1.0209999999999999,1.0349999999999999,null,null,null,null,null,null,null,null,null,null,null,null,null,null,null,null,null,null,null,null,null,null,null,null,null,null,null,null,null,null,null,null,null,null,null,null,null,null,null,null,null,"Раздел 1. Рельсовый путь № 203",null,null,null,null,1.0249999999999999,1.02,1.03,1.2,0]
["узел б лист 424.2,3 (количество деталей 12)",null,null,null,null,null,null,null,null,null,null,null,null,1.052,1.0209999999999999,1.0349999999999999,null,null,null,null,null,null,null,null,null,null,null,null,null,null,null,null,null,null,null,null,null,null,null,null,null,null,null,null,null,null,null,null,null,null,null,null,null,null,null,null,null,"Раздел 1. Рельсовый путь № 204",null,null,null,null,1.0249999999999999,1.02,1.03,1.2,0]
["узел в лист 424.2,3 (количество деталей 6)",null,null,null,null,null,null,null,null,null,null,null,null,1.052,1.0209999999999999,1.0349999999999999,null,null,null,null,null,null,null,null,null,null,null,null,null,null,null,null,null,null,null,null,null,null,null,null,null,null,null,null,null,null,null,null,null,null,null,null,null,null,null,null,null,"Раздел 1. Рельсовый путь № 205",null,null,null,null,1.0249999999999999,1.02,1.03,1.2,0]
["узел г лист 424.2,3 (количество деталей 4)",null,null,null,null,null,null,null,null,null,null,null,null,1.052,1.0209999999999999,1.0349999999999999,null,null,null,null,null,null,null,null,null,null,null,null,null,null,null,null,null,null,null,null,null,null,null,null,null,null,null,null,null,null,null,null,null,null,null,null,null,null,null,null,null,"Раздел 1. Рельсовый путь № 206",null,null,null,null,1.0249999999999999,1.02,1.03,1.2,0]
["узел д лист 424.2,3 (количество деталей 3)",null,null,null,null,null,null,null,null,null,null,null,null,1.052,1.0209999999999999,1.0349999999999999,null,null,null,null,null,null,null,null,null,null,null,null,null,null,null,null,null,null,null,null,null,null,null,null,null,null,null,null,null,null,null,null,null,null,null,null,null,null,null,null,null,"Раздел 1. Рельсовый путь № 207",null,null,null,null,1.0249999999999999,1.02,1.03,1.2,0]
["узел е лист 424.2,3 (количество деталей 30)",null,null,null,null,null,null,null,null,null,null,null,null,1.052,1.0209999999999999,1.0349999999999999,null,null,null,null,null,null,null,null,null,null,null,null,null,null,null,null,null,null,null,null,null,null,null,null,null,null,null,null,null,null,null,null,null,null,null,null,null,null,null,null,null,"Раздел 1. Рельсовый путь № 208",null,null,null,null,1.0249999999999999,1.02,1.03,1.2,0]
["Итого прямые затраты по смете в текущих ценах",null,null,null,null,null,null,37170668.520000003,null,28671790.010000002,null,37170668.520000003,null,1.052,1.0209999999999999,1.0349999999999999,null,null,null,null,null,null,null,null,null,null,null,null,null,null,null,null,null,null,null,null,null,null,null,null,null,null,null,null,null,null,null,null,null,null,null,null,null,null,null,null,null,"Раздел 1. Рельсовый путь № 209",null,null,null,null,1.0249999999999999,1.02,1.03,1.2,41188800.712332405]
["ВСЕГО по смете",null,null,null,null,null,null,27669805.800000001,null,null,null,27669805.800000001,null,1.052,1.0209999999999999,1.0349999999999999,null,null,null,null,null,null,null,null,null,null,null,null,null,null,null,null,null,null,null,null,null,null,null,null,null,null,null,null,null,null,null,null,null,null,null,null,null,null,null,null,null,"Раздел 1. Рельсовый путь № 212",null,null,null,null,1.0249999999999999,1.02,1.03,1.2,0]
["Материалы заказчика",null,null,null,null,null,null,28365590.760000002,null,null,null,28365590.760000002,null,1.052,1.0209999999999999,1.0349999999999999,null,null,null,null,null,null,null,null,null,null,null,null,null,null,null,null,null,null,null,null,null,null,null,null,null,null,null,null,null,null,null,null,null,null,null,null,null,null,null,null,null,"Раздел 1. Рельсовый путь № 213",null,null,null,null,1.0249999999999999,1.02,1.03,1.2,0]
[null,null,null,null,null,null,null,null,null,null,null,null,null,1.052,1.0209999999999999,1.0349999999999999,null,null,null,null,null,null,null,null,null,null,null,null,null,null,null,null,null,null,null,null,null,null,null,null,null,null,null,null,null,null,null,null,null,null,null,null,null,null,null,null,null,"Раздел 1. Рельсовый путь № 214",null,null,null,null,1.0249999999999999,1.02,1.03,1.2,0]
["Заказчик:  ____________________________ ООО \"ЕвроХим Терминал Усть-Луга\"",null,null,null,null,null,null,null,null,null,null,null,null,1.052,1.0209999999999999,1.0349999999999999,null,null,null,null,null,null,null,null,null,null,null,null,null,null,null,null,null,null,null,null,null,null,null,null,null,null,null,null,null,null,null,null,null,null,null,null,null,null,null,null,null,"Раздел 1. Рельсовый путь № 215",null,null,null,null,1.0249999999999999,1.02,1.03,1.2,0]
["[должность, подпись (инициалы, фамилия)]",null,null,null,null,null,null,null,null,null,null,null,null,1.052,1.0209999999999999,1.0349999999999999,null,null,null,null,null,null,null,null,null,null,null,null,null,null,null,null,null,null,null,null,null,null,null,null,null,null,null,null,null,null,null,null,null,null,null,null,null,null,null,null,null,"Раздел 1. Рельсовый путь № 216",null,null,null,null,1.0249999999999999,1.02,1.03,1.2,0]
[null,null,null,null,null,null,null,null,null,null,null,null,null,1.052,1.0209999999999999,1.0349999999999999,null,null,null,null,null,null,null,null,null,null,null,null,null,null,null,null,null,null,null,null,null,null,null,null,null,null,null,null,null,null,null,null,null,null,null,null,null,null,null,null,null,"Раздел 1. Рельсовый путь № 217",null,null,null,null,1.0249999999999999,1.02,1.03,1.2,0]
["Составил:  ____________________________ ",null,null,null,null,null,null,null,null,null,null,null,null,1.052,1.0209999999999999,1.0349999999999999,null,null,null,null,null,null,null,null,null,null,null,null,null,null,null,null,null,null,null,null,null,null,null,null,null,null,null,null,null,null,null,null,null,null,null,null,null,null,null,null,null,"Раздел 1. Рельсовый путь № 218",null,null,null,null,1.0249999999999999,1.02,1.03,1.2,0]
["[должность, подпись (инициалы, фамилия)]",null,null,null,null,null,null,null,null,null,null,null,null,1.052,1.0209999999999999,1.0349999999999999,null,null,null,null,null,null,null,null,null,null,null,null,null,null,null,null,null,null,null,null,null,null,null,null,null,null,null,null,null,null,null,null,null,null,null,null,null,null,null,null,null,"Раздел 1. Рельсовый путь № 219",null,null,null,null,1.0249999999999999,1.02,1.03,1.2,0]
[null,null,null,null,null,null,null,null,null,null,null,null,null,1.052,1.0209999999999999,1.0349999999999999,null,null,null,null,null,null,null,null,null,null,null,null,null,null,null,null,null,null,null,null,null,null,null,null,null,null,null,null,null,null,null,null,null,null,null,null,null,null,null,null,null,"Раздел 1. Рельсовый путь № 220",null,null,null,null,1.0249999999999999,1.02,1.03,1.2,0]
["Проверил:  ____________________________ ",null,null,null,null,null,null,null,null,null,null,null,null,1.052,1.0209999999999999,1.0349999999999999,null,null,null,null,null,null,null,null,null,null,null,null,null,null,null,null,null,null,null,null,null,null,null,null,null,null,null,null,null,null,null,null,null,null,null,null,null,null,null,null,null,"Раздел 1. Рельсовый путь № 221",null,null,null,null,1.0249999999999999,1.02,1.03,1.2,0]
["[должность, подпись (инициалы, фамилия)]",null,null,null,null,null,null,null,null,null,null,null,null,1.052,1.0209999999999999,1.0349999999999999,null,null,null,null,null,null,null,null,null,null,null,null,null,null,null,null,null,null,null,null,null,null,null,null,null,null,null,null,null,null,null,null,null,null,null,null,null,null,null,null,null,"Раздел 1. Рельсовый путь № 222",null,null,null,null,1.0249999999999999,1.02,1.03,1.2,0]
[null,null,null,null,null,null,null,null,null,null,null,null,null,1.052,1.0209999999999999,1.0349999999999999,null,null,null,null,null,null,null,null,null,null,null,null,null,null,null,null,null,null,null,null,null,null,null,null,null,null,null,null,null,null,null,null,null,null,null,null,null,null,null,null,null,"Раздел 1. Рельсовый путь № 223",null,null,null,null,1.0249999999999999,1.02,1.03,1.2,0]
[null,null,null,null,null,null,null,null,null,null,null,null,null,1.052,1.0209999999999999,1.0349999999999999,null,null,null,null,null,null,null,null,null,null,null,null,null,null,null,null,null,null,null,null,null,null,null,null,null,null,null,null,null,null,null,null,null,null,null,null,null,null,null,null,null,"Раздел 1. Рельсовый путь № 224",null,null,null,null,1.0249999999999999,1.02,1.03,1.2,0]
[null,null,null,null,null,null,null,null,null,null,null,null,null,1.052,1.0209999999999999,1.0349999999999999,null,null,null,null,null,null,null,null,null,null,null,null,null,null,null,null,null,null,null,null,null,null,null,null,null,null,null,null,null,null,null,null,null,null,null,null,null,null,null,null,null,"Раздел 1. Рельсовый путь № 225",null,null,null,null,1.0249999999999999,1.02,1.03,1.2,0]
[null,null,null,null,null,null,null,null,null,null,null,null,null,1.052,1.0209999999999999,1.0349999999999999,null,null,null,null,null,null,null,null,null,null,null,null,null,null,null,null,null,null,null,null,null,null,null,null,null,null,null,null,null,null,null,null,null,null,null,null,null,null,null,null,null,"Раздел 1. Рельсовый путь № 226",null,null,null,null,1.0249999999999999,1.02,1.03,1.2,0]
[null,null,null,null,null,null,null,null,null,null,null,null,null,1.052,1.0209999999999999,1.0349999999999999,null,null,null,null,null,null,null,null,null,null,null,null,null,null,null,null,null,null,null,null,null,null,null,null,null,null,null,null,null,null,null,null,null,null,null,null,null,null,null,null,null,"Раздел 1. Рельсовый путь № 227",null,null,null,null,1.0249999999999999,1.02,1.03,1.2,0]
[null,null,null,null,null,null,null,null,null,null,null,null,null,1.052,1.0209999999999999,1.0349999999999999,null,null,null,null,null,null,null,null,null,null,null,null,null,null,null,null,null,null,null,null,null,null,null,null,null,null,null,null,null,null,null,null,null,null,null,null,null,null,null,null,null,"Раздел 1. Рельсовый путь № 228",null,null,null,null,1.0249999999999999,1.02,1.03,1.2,0]
[null,null,null,null,null,null,null,null,null,null,null,null,null,1.052,1.0209999999999999,1.0349999999999999,null,null,null,null,null,null,null,null,null,null,null,null,null,null,null,null,null,null,null,null,null,null,null,null,null,null,null,null,null,null,null,null,null,null,null,null,null,null,null,null,null,"Раздел 1. Рельсовый путь № 229",null,null,null,null,1.0249999999999999,1.02,1.03,1.2,0]
[null,null,null,null,null,null,null,null,null,null,null,null,null,1.052,1.0209999999999999,1.0349999999999999,null,null,null,null,null,null,null,null,null,null,null,null,null,null,null,null,null,null,null,null,null,null,null,null,null,null,null,null,null,null,null,null,null,null,null,null,null,null,null,null,null,"Раздел 1. Рельсовый путь № 230",null,null,null,null,1.0249999999999999,1.02,1.03,1.2,0]
[null,null,null,null,null,null,null,null,null,null,null,null,null,1.052,1.0209999999999999,1.0349999999999999,null,null,null,null,null,null,null,null,null,null,null,null,null,null,null,null,null,null,null,null,null,null,null,null,null,null,null,null,null,null,null,null,null,null,null,null,null,null,null,null,null,"Раздел 1. Рельсовый путь № 231",null,null,null,null,1.0249999999999999,1.02,1.03,1.2,0]
[null,null,null,null,null,null,null,null,null,null,null,null,null,1.052,1.0209999999999999,1.0349999999999999,null,null,null,null,null,null,null,null,null,null,null,null,null,null,null,null,null,null,null,null,null,null,null,null,null,null,null,null,null,null,null,null,null,null,null,null,null,null,null,null,null,"Раздел 1. Рельсовый путь № 232",null,null,null,null,1.0249999999999999,1.02,1.03,1.2,0]
[null,null,null,null,null,null,null,null,null,null,null,null,null,1.052,1.0209999999999999,1.0349999999999999,null,null,null,null,null,null,null,null,null,null,null,null,null,null,null,null,null,null,null,null,null,null,null,null,null,null,null,null,null,null,null,null,null,null,null,null,null,null,null,null,null,"Раздел 1. Рельсовый путь № 233",null,null,null,null,1.0249999999999999,1.02,1.03,1.2,0]